{"text_format":"1","workbook":"xlsx","n_sheets":23,"sheets":["Instructions","SUM of SAL Lines","Line 1","Line 2","Line 3","Line 4","Line 5","Line 6","Line 7","Line 8","Line 9","Line 10","Line 11","Line 12","Line 13","Line 14","Line 15","Line 16","Line 17","Line 18","Line 19","Line 20","RRCs and Lead Units"],"not_rendered":{"charts":0,"images":0,"macros":1,"external_links":0,"defined_names":21,"comments":0,"pivot_tables":0},"unopened":[],"bounds":{"document_bytes":16777216,"sheet_cells":100000,"rows_first":2000,"rows_last":500,"rows_between":2000,"halvings":0,"cell_chars":16384,"cell_head_chars":4096},"cells_cut":0,"cells_raw":0,"read":"whole","date_system":"1900"}

{"sheet":"Instructions","index":0,"n_rows":66,"n_cols":1,"rows_kept":66,"cut":false,"hidden":false,"merged":[]}
["Instructions for Multiple Secondary Award Lines (SAL) Reconciliation Form"]
[]
["A. Purpose"]
["This form is used for three primary purposes:"]
["1. To create additional Award Lines under an existing Primary Award Line."]
["Example: Creating a separate Grant Worktag for a Co-PI on the same sponsored project."]
["2. To add funds to existing Secondary Award Lines."]
["Example: Providing year 2 funding on an incrementally funded sponsored project."]
["   3. Assist in the reconciliation of budget allocations to multiple Award Lines."]
["This form is not needed for the sole purpose of setting up a Secondary Award Line for a new subcontract.  A new Secondary Award Line will be created by SPA upon receipt of a new fully executed subrecipient agreement."]
[]
["B. Instructions for 'SUM of SAL Lines' Worksheet"]
["This worksheet combines all the Secondary Award Lines entered in each individual line worksheet (e.g. SAL 'Line 1') and compares it to the Primary Award Total Budget entered in the 'SUM of SAL Lines' worksheet."]
[" 1. Account Information"]
["Complete all indicated fields."]
["a. The top Primary Award Line portion of this section pertains only to information on the Primary Award Line (the \"parent account\")."]
["  2. Sum of All SAL Budgets To Be Entered"]
["a.     This section auto-fills with the summed amounts for each budget category entered on all individual SAL 'Line #' worksheets. "]
["  3. Primary Award Budget Total"]
["      a. Enter the budget total for each budget category to be allocated to all the Secondary Award Lines."]
["b. Ensure that the amount entered for a specific budget category does not exceed the current budget amount in that budget category on the Primary Account Line.  "]
["      c. Enter the indirect cost rate applicable to the project."]
["  4. Difference"]
["a. This section auto-calculates the difference between the Primary Award Budget Total to be allocated and the Sum of All SAL Budgets.   "]
["b. The difference should be zero for each budget category.  If negative, more funds have been allocated to the SAL 'Line #' worksheets than is entered as the Primary Award Budget Total to be allocated.  If positive, less funds have been allocated to the SAL 'Line #' worksheets than is entered as the Primary Award budget Total to be allocated.  The Difference column for all budget categories should equal zero prior to forwarding the SAL and reconciliation forms to OSPA or OIPTT."]
[]
["C. Instructions for Individual SAL 'Line #' Worksheets"]
["This form is divided into five sections. PIs or Grant Coordinators can fill out this form using information from award documents and/or updated project information."]
["1. Award Information"]
["Complete all indicated fields."]
["a. The  top Primary Award Line portion of this section pertains only to information on the Primay Award line (the \"parent\" account). It will auto-fill from the 'SUM of SAL Lines' tab.  Please note:"]
["* The Lead PI signature in this portion authorizes the transfer of funds from his/her Primary Award Line to the Secondary Award Lines listed listed in each 'Line #' worksheet, in accordance with the budget entered in Section 3 of each 'Line #' worksheet. \n* The Lead PI signature also indicates that the information contained in this form, and the budgets, are consistent with the overall goals of the sponsored project."]
["b. The bottom Secondary Award Line portion of this section pertains only to information on the Secondary Award Line (the \"child\" account). Please note:"]
["* Enter the period of performance necessary for the Secondary Award Line. This may be different than the Primary Award Line's current period of performance, but it cannot start before or end after the Primary Award Line's period of performance."]
["* Enter the project title for the Secondary Award Line, only if it differs from the Primary Award Line's title."]
["* Enter the name of the PI receiving funds (hereinafter referred to as the \"Secondary Award Line PI\") via this form."]
["* If a new Secondary Award Line needs to be established, enter \"new\" under \"Secondary Grant Worktag.\""]
["* If funds are to be added to an existing Secondary Award Line, enter the existing Secondary Grant Worktag."]
["* Enter the Lead Org Dept and RRC/Org Unit (use the drop-down menus) for the Secondary Award Line."]
["2. Secondary Award Line Principal Investigator Certifications"]
["The Secondary Award Line PI is required to read the information in this section, answer the two questions, and sign the form certifying that the statements contained in this form are true."]
["3. Secondary Award Line Budget To Be Entered"]
["Enter the budget for the Secondary Award Line in each corresponding budget category. Please note:"]
["a. Do not enter any numbers in the grayed out lines. Total Direct Costs and Total All Costs (cells G41 and G43) will automatically calculate to avoid addition errors."]
["b. The amount entered in each budget category should be equal to or less than the same budget category of the Primary Award Line."]
["Example: If a Primary Award Line has $3,000 in the Supplies/Materials budget category, the Secondary Award Line Form cannot have more than $3,000 listed in the Supplies/Materials budget category."]
["c. The budget on the Primary Award Line will be reduced by the same amount per budget category as is entered on the Secondary Award Line Form. "]
["Example: If the Secondary Award Line budget has $1,000 for Computer Usage, the Primary Award Line budget will be reduced by $1,000 in Computer Usage when the form is fully processed."]
["* If there are extenuating circumstances that necessitate reducing the Primary Award Line budget categories differently, please contact OSPA or OIPTT."]
["d. No negative numbers should be entered. If you need to process a revised budget, please contact the OSPA Awards Team or OIPTT-Industry Contracts. "]
["e. Enter the IDC rate on this project in cell E42. Use this rate to calculate the Indirect Costs and enter the amount in cell G42. This rate must match the IDC rate of the Primary Award Line."]
["4. Secondary Award Line Compliances"]
["The Secondary Award Line PI is required to answer the three questions in this section, and provide additional information if necessary."]
["5. Secondary Award Line Authorizations"]
["The Lead Org Dept and RRC/Org Unit of the Secondary Award Line as indicated in the bottom portion of Section 1 must authorize the establishment of a Worktag for a Secondary Award Line. Only authorized signatories from the Lead Org Dept and the RRC/Org Unit are permitted to sign this form.  Please enter or print clearly the name of each authorized signatory and obtain dated signatures."]
[]
["How to Submit Forms"]
["These completed forms are accepted via e-mail or interdepartmental mail."]
["For federal, state, local government or non-profit sponsors indicated in Section 1, submit to OSPA:"]
["ospa-awards@iastate.edu"]
["1138 Pearson Hall, Mail Code 2103"]
["For industry or commodity sponsors indicated in Section 1, submit to OIPTT:"]
["industry-contracts@iastate.edu "]
["1805 Collaboration Place, Suite 2100"]
[]
["If you have any questions please contact the appropriate OSPA Awards or Industry Contracts contact.       Rev. 10/22/2020"]

{"sheet":"SUM of SAL Lines","index":1,"n_rows":27,"n_cols":11,"rows_kept":27,"cut":false,"hidden":false,"merged":[[1,1,1,10],[6,1,6,6],[6,7,6,8],[6,9,6,10],[4,4,4,10],[10,1,10,4],[11,1,11,4],[5,4,5,10],[13,1,13,4],[15,1,15,4],[12,1,12,4],[2,1,5,1],[2,4,2,6],[14,1,14,10],[7,1,7,4],[8,1,8,4],[9,1,9,4],[26,1,26,4],[25,1,25,2],[16,1,16,4],[18,1,18,4],[22,1,22,4],[23,1,23,4],[24,1,24,4],[21,1,21,4],[19,1,19,4],[20,1,20,4],[17,1,17,10]]}
[]
[null,"1. AWARD INFORMATION"]
[null,"Primary Award Line",null,"PI Name:",null,null,null,null,"Primary Grant Worktag:","GR-"]
[null,null,null,null,null,null,null,null,"GoldSheet Number:"]
[null,null,null,"Sponsor:"]
[null,null,null,"Title of Project:"]
[null,"2. SUM OF ALL SECONDARY AWARD LINE BUDGETS TO BE ENTERED",null,null,null,null,null,"Primary Award Budget Total",null,"Difference"]
[null,"Salary/Wages",null,null,null,"$",{"$f":"SUM('Line 1:Line 20'!G22)","v":0},"$",null,"$",{"$f":"I8-G8","v":0}]
[null,"Payroll Benefits",null,null,null,"$",{"$f":"SUM('Line 1:Line 20'!G23)","v":0},"$",null,"$",{"$f":"I9-G9","v":0}]
[null,"Equipment",null,null,null,"$",{"$f":"SUM('Line 1:Line 20'!G24)","v":0},"$",null,"$",0]
[null,"Travel - Domestic",null,null,null,"$",{"$f":"SUM('Line 1:Line 20'!G25)","v":0},"$",null,"$",0]
[null,"Travel - Foreign",null,null,null,"$",{"$f":"SUM('Line 1:Line 20'!G26)","v":0},"$",null,"$",0]
[null,"Student Tuition",null,null,null,"$",{"$f":"SUM('Line 1:Line 20'!G27)","v":0},"$",null,"$",0]
[null,"Supplies/Materials",null,null,null,"$",{"$f":"SUM('Line 1:Line 20'!G28)","v":0},"$",null,"$",0]
[null,"Subcontracts"]
[null,"Subcontracts - Burdenable",null,null,null,"$",{"$f":"SUM('Line 1:Line 20'!G31)","v":0},"$",null,"$",0]
[null,"Subcontracts - Nonburdenable",null,null,null,"$",{"$f":"SUM('Line 1:Line 20'!G32)","v":0},"$",null,"$",0]
[null,"Other Direct Costs"]
[null,"Computer Usage",null,null,null,"$",{"$f":"SUM('Line 1:Line 20'!G35)","v":0},"$",null,"$",0]
[null,"Printing/Copying",null,null,null,"$",{"$f":"SUM('Line 1:Line 20'!G36)","v":0},"$",null,"$",0]
[null,"Honoraria Services",null,null,null,"$",{"$f":"SUM('Line 1:Line 20'!G37)","v":0},"$",null,"$",0]
[null,"Postage",null,null,null,"$",{"$f":"SUM('Line 1:Line 20'!G38)","v":0},"$",null,"$",0]
[null,"Other Direct Costs",null,null,null,"$",{"$f":"SUM('Line 1:Line 20'!G39)","v":0},"$",null,"$",0]
[null,"Participant Support Costs",null,null,null,"$",{"$f":"SUM('Line 1:Line 20'!G40)","v":0},"$",null,"$",0]
[null,"TOTAL DIRECT COSTS",null,null,null,"$",{"$f":"SUM(G8:G14,G16:G17,G19:G24)","v":0},"$",{"$f":"SUM(I8:I14,I16:I17,I19:I24)","v":0},"$",0]
[null,"Indirect Costs",null,"Rate:",null,"$",{"$f":"SUM('Line 1:Line 20'!G42)","v":0},"$",null,"$",0]
[null,"TOTAL ALL COSTS",null,null,null,"$",{"$f":"+G25+G26","v":0},"$",{"$f":"+I25+I26","v":0},"$",0]

{"sheet":"Line 1","index":2,"n_rows":43,"n_cols":11,"rows_kept":43,"cut":false,"hidden":false,"merged":[[37,9,37,11],[40,7,40,8],[40,9,40,11],[34,7,36,11],[31,7,31,9],[42,7,42,11],[0,1,0,11],[10,1,10,11],[14,1,14,11],[5,1,8,1],[2,4,2,6],[4,4,4,11],[5,5,5,6],[6,4,6,11],[1,1,4,1],[40,1,40,4],[33,7,33,11],[16,1,16,11],[17,1,17,11],[33,1,33,4],[37,7,37,8],[29,1,29,4],[5,9,5,10],[11,1,11,11],[12,1,12,11],[13,1,13,11],[18,8,18,9],[19,8,19,9],[28,7,28,9],[20,7,20,11],[20,1,20,6],[23,7,23,9],[9,5,9,6],[8,4,8,10],[19,4,19,6],[7,4,7,6]]}
[0,"1. AWARD INFORMATION"]
[null,"PRIMARY AWARD LINE",null,"PI Name:",{"$f":"'SUM of SAL Lines'!E3:G3","v":0},null,null,null,"Primary Grant Worktag:","GR-",{"$f":"'SUM of SAL Lines'!K3","v":0}]
[null,null,null,"PI Signature:",null,null,null,null,null,"GoldSheet Number:",{"$f":"'SUM of SAL Lines'!K4","v":0}]
[null,null,null,"Sponsor:",{"$f":"'SUM of SAL Lines'!E5:K5","v":0}]
[null,null,null,"Title of Project:",{"$f":"'SUM of SAL Lines'!E6:K6","v":0}]
[null,"SECONDARY AWARD LINE",null,"Period of Performance:","  From: ",null,null,"To:"]
[null,null,null,"Title (if different):"]
[null,null,null,"PI Name:",null,null,null,null,null,"Secondary Grang Worktag:  GR-"]
[null,null,null,"Lead Org Dept:"]
[null,null,null,"Cost Center:  CC",null,"Business Unit:  BU",null,null,null,"RRC/Org Unit:"]
[null,"2.SECONDARY AWARD LINE PRINCIPAL INVESTIGATOR CERTIFICATIONS"]
[null,"* I agree to be bound by the terms and conditions of the outside grant or contract which supports this activity, and, in consideration of the information\n   and facilities made available to me by the University or the outside sponsor, to assign copyright and patent rights to the Iowa State University \n   Research Foundation, Inc. in accordance with the terms and conditions stated in the Faculty Handbook."]
[null,"* I certify that I have not been debarred, suspended, or declared ineligible to receive agency funds."]
[null,"  Conflict of Interest and Commitment (COIC): Real or perceived conflicts of interest may exist in a project when an investigator or a member\n  of his or her family has: a management role in, financial interest in, or a paid consulting agreement with the sponsor or paid consulting\n  agreements with other entities on topics related to the project. By signing this form, all investigators certify that they have read and\n  understand ISU's Conflict of Interest and Commitment Policy [http://www.provost.iastate.edu/help/coic] and made all disclosures required\n  by it. For further information, call 4-7793."]
[null,"                                                        Is there a potential for Conflict of Interest?"]
[]
[null,"                                                        If yes, are disclosure procedures being implemented?"]
[null,"* I certify to the best of my knowledge that the statements contained in this form are true."]
[null,null,null,"_________________________________________________"]
[null,null,null,"Signature of:",{"$f":"E8","v":0},null,null,null,"Date"]
[null,"3. SECONDARY AWARD LINE BUDGET TO BE ENTERED",null,null,null,null,null,"4. SECONDARY AWARD LINE COMPLIANCES"]
[null,"Salary/Wages",null,null,null,"$",null,"1. Will vertebrate animals be used in this project?"]
[null,"Payroll Benefits",null,null,null,"$"]
[null,"Equipment",null,null,null,"$",null,"      If yes, provide IACUC Log #:"]
[null,"Travel - Domestic",null,null,null,"$",null,"2. Are the following safety or health hazards involved?"]
[null,"Travel - Foreign",null,null,null,"$",null,"     a. Recombinant DNA, Human, or Animal Pathogens"]
[null,"Student Tuition",null,null,null,"$",null,"     b. Radiological Materials"]
[null,"Supplies/Materials",null,null,null,"$"]
[null,null,null,null,null,null,null,"If yes to either, provide IBC Log #:"]
[null,"Subcontracts ",null,null,null,null,null,"3. Will human subjects be used in this project?"]
[null,"Subcontracts - Burdenable",null,null,null,"$"]
[null,"Subcontracts - Nonburdenable",null,null,null,"$",null,"       If yes, provide IRB Log #:"]
[]
[null,"Other Direct Costs",null,null,null," ",null,"5. SECONDARY AWARD LINE AUTHORIZATIONS"]
[null,"Computer Usage",null,null,null,"$",null,"This form has been received and is judged to be consistent with the objectives and capabilities of the unit receiving the funding and represented by the signatures below.  The proposed effort is considered compatible with other University duties of the Investigator(s) and consistent with University policies."]
[null,"Printing/Copying",null,null,null,"$"]
[null,"Honoraria Services",null,null,null,"$"]
[null,"Postage",null,null,null,"$",null,"Authorization on behalf of:",null,{"$f":"E9","v":0}]
[null,"Other Direct Costs",null,null,null,"$",null,"Printed Name of Authorizer:"]
[null,"Participant Support Costs",null,null,null,"$",null,"Signature & Date:"]
[null,"TOTAL DIRECT COSTS",null,null,null,"$",{"$f":"SUM(G22:G40)","v":0},"Authorization on behalf of:",null,{"$f":"K10","v":0}]
[null,"Indirect Costs ",null,"Rate:",{"$f":"'SUM of SAL Lines'!E26","v":0},"$",null,"Printed Name of Authorizer:"]
[null,null,null,null,"TOTAL ALL COSTS","$",{"$f":"+G41+G42","v":0},"Signature & Date:"]

{"sheet":"Line 2","index":3,"n_rows":43,"n_cols":11,"rows_kept":43,"cut":false,"hidden":false,"merged":[[31,7,31,9],[33,1,33,4],[33,7,33,11],[42,7,42,11],[34,7,36,11],[37,7,37,8],[37,9,37,11],[40,1,40,4],[40,7,40,8],[40,9,40,11],[20,1,20,6],[20,7,20,11],[23,7,23,9],[28,7,28,9],[29,1,29,4],[14,1,14,11],[9,5,9,6],[17,1,17,11],[18,8,18,9],[19,8,19,9],[8,4,8,10],[19,4,19,6],[7,4,7,6],[16,1,16,11],[0,1,0,11],[1,1,4,1],[2,4,2,6],[4,4,4,11],[5,1,8,1],[5,5,5,6],[5,9,5,10],[6,4,6,11],[10,1,10,11],[11,1,11,11],[12,1,12,11],[13,1,13,11]]}
[0,"1. AWARD INFORMATION"]
[null,"PRIMARY AWARD LINE",null,"PI Name:",{"$f":"'SUM of SAL Lines'!E3:G3","v":0},null,null,null,"Primary Grant Worktag:","GR-",{"$f":"'SUM of SAL Lines'!K3","v":0}]
[null,null,null,"PI Signature:",null,null,null,null,null,"GoldSheet Number:",{"$f":"'SUM of SAL Lines'!K4","v":0}]
[null,null,null,"Sponsor:",{"$f":"'SUM of SAL Lines'!E5:K5","v":0}]
[null,null,null,"Title of Project:",{"$f":"'SUM of SAL Lines'!E6:K6","v":0}]
[null,"SECONDARY AWARD LINE",null,"Period of Performance:","  From: ",null,null,"To:"]
[null,null,null,"Title (if different):"]
[null,null,null,"PI Name:",null,null,null,null,null,"Secondary Grang Worktag:  GR-"]
[null,null,null,"Lead Org Dept:"]
[null,null,null,"Cost Center:  CC",null,"Business Unit:  BU",null,null,null,"RRC/Org Unit:","HS"]
[null,"2.SECONDARY AWARD LINE PRINCIPAL INVESTIGATOR CERTIFICATIONS"]
[null,"* I agree to be bound by the terms and conditions of the outside grant or contract which supports this activity, and, in consideration of the information\n   and facilities made available to me by the University or the outside sponsor, to assign copyright and patent rights to the Iowa State University \n   Research Foundation, Inc. in accordance with the terms and conditions stated in the Faculty Handbook."]
[null,"* I certify that I have not been debarred, suspended, or declared ineligible to receive agency funds."]
[null,"  Conflict of Interest and Commitment (COIC): Real or perceived conflicts of interest may exist in a project when an investigator or a member\n  of his or her family has: a management role in, financial interest in, or a paid consulting agreement with the sponsor or paid consulting\n  agreements with other entities on topics related to the project. By signing this form, all investigators certify that they have read and\n  understand ISU's Conflict of Interest and Commitment Policy [http://www.provost.iastate.edu/help/coic] and made all disclosures required\n  by it. For further information, call 4-7793."]
[null,"                                                        Is there a potential for Conflict of Interest?"]
[]
[null,"                                                        If yes, are disclosure procedures being implemented?"]
[null,"* I certify to the best of my knowledge that the statements contained in this form are true."]
[null,null,null,"_________________________________________________"]
[null,null,null,"Signature of:",{"$f":"E8","v":0},null,null,null,"Date"]
[null,"3. SECONDARY AWARD LINE BUDGET TO BE ENTERED",null,null,null,null,null,"4. SECONDARY AWARD LINE COMPLIANCES"]
[null,"Salary/Wages",null,null,null,"$",null,"1. Will vertebrate animals be used in this project?"]
[null,"Payroll Benefits",null,null,null,"$"]
[null,"Equipment",null,null,null,"$",null,"      If yes, provide IACUC Log #:"]
[null,"Travel - Domestic",null,null,null,"$",null,"2. Are the following safety or health hazards involved?"]
[null,"Travel - Foreign",null,null,null,"$",null,"     a. Recombinant DNA, Human, or Animal Pathogens"]
[null,"Student Tuition",null,null,null,"$",null,"     b. Radiological Materials"]
[null,"Supplies/Materials",null,null,null,"$"]
[null,null,null,null,null,null,null,"If yes to either, provide IBC Log #:"]
[null,"Subcontracts ",null,null,null,null,null,"3. Will human subjects be used in this project?"]
[null,"Subcontracts - Burdenable",null,null,null,"$"]
[null,"Subcontracts - Nonburdenable",null,null,null,"$",null,"       If yes, provide IRB Log #:"]
[]
[null,"Other Direct Costs",null,null,null," ",null,"5. SECONDARY AWARD LINE AUTHORIZATIONS"]
[null,"Computer Usage",null,null,null,"$",null,"This form has been received and is judged to be consistent with the objectives and capabilities of the unit receiving the funding and represented by the signatures below.  The proposed effort is considered compatible with other University duties of the Investigator(s) and consistent with University policies."]
[null,"Printing/Copying",null,null,null,"$"]
[null,"Honoraria Services",null,null,null,"$"]
[null,"Postage",null,null,null,"$",null,"Authorization on behalf of:",null,{"$f":"E9","v":0}]
[null,"Other Direct Costs",null,null,null,"$",null,"Printed Name of Authorizer:"]
[null,"Participant Support Costs",null,null,null,"$",null,"Signature & Date:"]
[null,"TOTAL DIRECT COSTS",null,null,null,"$",{"$f":"SUM(G22:G40)","v":0},"Authorization on behalf of:",null,{"$f":"K10","v":"HS"}]
[null,"Indirect Costs ",null,"Rate:",{"$f":"'SUM of SAL Lines'!E26","v":0},"$",null,"Printed Name of Authorizer:"]
[null,null,null,null,"TOTAL ALL COSTS","$",{"$f":"+G41+G42","v":0},"Signature & Date:"]

{"sheet":"Line 3","index":4,"n_rows":43,"n_cols":11,"rows_kept":43,"cut":false,"hidden":false,"merged":[[31,7,31,9],[33,1,33,4],[33,7,33,11],[42,7,42,11],[34,7,36,11],[37,7,37,8],[37,9,37,11],[40,1,40,4],[40,7,40,8],[40,9,40,11],[20,1,20,6],[20,7,20,11],[23,7,23,9],[28,7,28,9],[29,1,29,4],[14,1,14,11],[9,5,9,6],[17,1,17,11],[18,8,18,9],[19,8,19,9],[8,4,8,10],[19,4,19,6],[7,4,7,6],[16,1,16,11],[0,1,0,11],[1,1,4,1],[2,4,2,6],[4,4,4,11],[5,1,8,1],[5,5,5,6],[5,9,5,10],[6,4,6,11],[10,1,10,11],[11,1,11,11],[12,1,12,11],[13,1,13,11]]}
[0,"1. AWARD INFORMATION"]
[0,"PRIMARY AWARD LINE",null,"PI Name:",{"$f":"'SUM of SAL Lines'!E3:G3","v":0},null,null,null,"Primary Grant Worktag:","GR-",{"$f":"'SUM of SAL Lines'!K3","v":0}]
[0,null,null,"PI Signature:",null,null,null,null,null,"GoldSheet Number:",{"$f":"'SUM of SAL Lines'!K4","v":0}]
[0,null,null,"Sponsor:",{"$f":"'SUM of SAL Lines'!E5:K5","v":0}]
[0,null,null,"Title of Project:",{"$f":"'SUM of SAL Lines'!E6:K6","v":0}]
[0,"SECONDARY AWARD LINE",null,"Period of Performance:","  From: ",null,null,"To:"]
[null,null,null,"Title (if different):"]
[null,null,null,"PI Name:",null,null,null,null,null,"Secondary Grang Worktag:  GR-"]
[null,null,null,"Lead Org Dept:"]
[null,null,null,"Cost Center:  CC",null,"Business Unit:  BU",null,null,null,"RRC/Org Unit:"]
[null,"2.SECONDARY AWARD LINE PRINCIPAL INVESTIGATOR CERTIFICATIONS"]
[null,"* I agree to be bound by the terms and conditions of the outside grant or contract which supports this activity, and, in consideration of the information\n   and facilities made available to me by the University or the outside sponsor, to assign copyright and patent rights to the Iowa State University \n   Research Foundation, Inc. in accordance with the terms and conditions stated in the Faculty Handbook."]
[null,"* I certify that I have not been debarred, suspended, or declared ineligible to receive agency funds."]
[null,"  Conflict of Interest and Commitment (COIC): Real or perceived conflicts of interest may exist in a project when an investigator or a member\n  of his or her family has: a management role in, financial interest in, or a paid consulting agreement with the sponsor or paid consulting\n  agreements with other entities on topics related to the project. By signing this form, all investigators certify that they have read and\n  understand ISU's Conflict of Interest and Commitment Policy [http://www.provost.iastate.edu/help/coic] and made all disclosures required\n  by it. For further information, call 4-7793."]
[null,"                                                        Is there a potential for Conflict of Interest?"]
[]
[null,"                                                        If yes, are disclosure procedures being implemented?"]
[null,"* I certify to the best of my knowledge that the statements contained in this form are true."]
[null,null,null,"_________________________________________________"]
[null,null,null,"Signature of:",{"$f":"E8","v":0},null,null,null,"Date"]
[null,"3. SECONDARY AWARD LINE BUDGET TO BE ENTERED",null,null,null,null,null,"4. SECONDARY AWARD LINE COMPLIANCES"]
[null,"Salary/Wages",null,null,null,"$",null,"1. Will vertebrate animals be used in this project?"]
[null,"Payroll Benefits",null,null,null,"$"]
[null,"Equipment",null,null,null,"$",null,"      If yes, provide IACUC Log #:"]
[null,"Travel - Domestic",null,null,null,"$",null,"2. Are the following safety or health hazards involved?"]
[null,"Travel - Foreign",null,null,null,"$",null,"     a. Recombinant DNA, Human, or Animal Pathogens"]
[null,"Student Tuition",null,null,null,"$",null,"     b. Radiological Materials"]
[null,"Supplies/Materials",null,null,null,"$"]
[null,null,null,null,null,null,null,"If yes to either, provide IBC Log #:"]
[null,"Subcontracts ",null,null,null,null,null,"3. Will human subjects be used in this project?"]
[null,"Subcontracts - Burdenable",null,null,null,"$"]
[null,"Subcontracts - Nonburdenable",null,null,null,"$",null,"       If yes, provide IRB Log #:"]
[]
[null,"Other Direct Costs",null,null,null," ",null,"5. SECONDARY AWARD LINE AUTHORIZATIONS"]
[null,"Computer Usage",null,null,null,"$",null,"This form has been received and is judged to be consistent with the objectives and capabilities of the unit receiving the funding and represented by the signatures below.  The proposed effort is considered compatible with other University duties of the Investigator(s) and consistent with University policies."]
[null,"Printing/Copying",null,null,null,"$"]
[null,"Honoraria Services",null,null,null,"$"]
[null,"Postage",null,null,null,"$",null,"Authorization on behalf of:",null,{"$f":"E9","v":0}]
[null,"Other Direct Costs",null,null,null,"$",null,"Printed Name of Authorizer:"]
[null,"Participant Support Costs",null,null,null,"$",null,"Signature & Date:"]
[null,"TOTAL DIRECT COSTS",null,null,null,"$",{"$f":"SUM(G22:G40)","v":0},"Authorization on behalf of:",null,{"$f":"K10","v":0}]
[null,"Indirect Costs ",null,"Rate:",{"$f":"'SUM of SAL Lines'!E26","v":0},"$",null,"Printed Name of Authorizer:"]
[null,null,null,null,"TOTAL ALL COSTS","$",{"$f":"+G41+G42","v":0},"Signature & Date:"]

{"sheet":"Line 4","index":5,"n_rows":43,"n_cols":11,"rows_kept":43,"cut":false,"hidden":false,"merged":[[31,7,31,9],[33,1,33,4],[33,7,33,11],[42,7,42,11],[34,7,36,11],[37,7,37,8],[37,9,37,11],[40,1,40,4],[40,7,40,8],[40,9,40,11],[20,1,20,6],[20,7,20,11],[23,7,23,9],[28,7,28,9],[29,1,29,4],[14,1,14,11],[9,5,9,6],[17,1,17,11],[18,8,18,9],[19,8,19,9],[8,4,8,10],[19,4,19,6],[7,4,7,6],[16,1,16,11],[0,1,0,11],[1,1,4,1],[2,4,2,6],[4,4,4,11],[5,1,8,1],[5,5,5,6],[5,9,5,10],[6,4,6,11],[10,1,10,11],[11,1,11,11],[12,1,12,11],[13,1,13,11]]}
[0,"1. AWARD INFORMATION"]
[null,"PRIMARY AWARD LINE",null,"PI Name:",{"$f":"'SUM of SAL Lines'!E3:G3","v":0},null,null,null,"Primary Grant Worktag:","GR-",{"$f":"'SUM of SAL Lines'!K3","v":0}]
[null,null,null,"PI Signature:",null,null,null,null,null,"GoldSheet Number:",{"$f":"'SUM of SAL Lines'!K4","v":0}]
[null,null,null,"Sponsor:",{"$f":"'SUM of SAL Lines'!E5:K5","v":0}]
[null,null,null,"Title of Project:",{"$f":"'SUM of SAL Lines'!E6:K6","v":0}]
[null,"SECONDARY AWARD LINE",null,"Period of Performance:","  From: ",null,null,"To:"]
[null,null,null,"Title (if different):"]
[null,null,null,"PI Name:",null,null,null,null,null,"Secondary Grang Worktag:  GR-"]
[null,null,null,"Lead Org Dept:"]
[null,null,null,"Cost Center:  CC",null,"Business Unit:  BU",null,null,null,"RRC/Org Unit:"]
[null,"2.SECONDARY AWARD LINE PRINCIPAL INVESTIGATOR CERTIFICATIONS"]
[null,"* I agree to be bound by the terms and conditions of the outside grant or contract which supports this activity, and, in consideration of the information\n   and facilities made available to me by the University or the outside sponsor, to assign copyright and patent rights to the Iowa State University \n   Research Foundation, Inc. in accordance with the terms and conditions stated in the Faculty Handbook."]
[null,"* I certify that I have not been debarred, suspended, or declared ineligible to receive agency funds."]
[null,"  Conflict of Interest and Commitment (COIC): Real or perceived conflicts of interest may exist in a project when an investigator or a member\n  of his or her family has: a management role in, financial interest in, or a paid consulting agreement with the sponsor or paid consulting\n  agreements with other entities on topics related to the project. By signing this form, all investigators certify that they have read and\n  understand ISU's Conflict of Interest and Commitment Policy [http://www.provost.iastate.edu/help/coic] and made all disclosures required\n  by it. For further information, call 4-7793."]
[null,"                                                        Is there a potential for Conflict of Interest?"]
[]
[null,"                                                        If yes, are disclosure procedures being implemented?"]
[null,"* I certify to the best of my knowledge that the statements contained in this form are true."]
[null,null,null,"_________________________________________________"]
[null,null,null,"Signature of:",{"$f":"E8","v":0},null,null,null,"Date"]
[null,"3. SECONDARY AWARD LINE BUDGET TO BE ENTERED",null,null,null,null,null,"4. SECONDARY AWARD LINE COMPLIANCES"]
[null,"Salary/Wages",null,null,null,"$",null,"1. Will vertebrate animals be used in this project?"]
[null,"Payroll Benefits",null,null,null,"$"]
[null,"Equipment",null,null,null,"$",null,"      If yes, provide IACUC Log #:"]
[null,"Travel - Domestic",null,null,null,"$",null,"2. Are the following safety or health hazards involved?"]
[null,"Travel - Foreign",null,null,null,"$",null,"     a. Recombinant DNA, Human, or Animal Pathogens"]
[null,"Student Tuition",null,null,null,"$",null,"     b. Radiological Materials"]
[null,"Supplies/Materials",null,null,null,"$"]
[null,null,null,null,null,null,null,"If yes to either, provide IBC Log #:"]
[null,"Subcontracts ",null,null,null,null,null,"3. Will human subjects be used in this project?"]
[null,"Subcontracts - Burdenable",null,null,null,"$"]
[null,"Subcontracts - Nonburdenable",null,null,null,"$",null,"       If yes, provide IRB Log #:"]
[]
[null,"Other Direct Costs",null,null,null," ",null,"5. SECONDARY AWARD LINE AUTHORIZATIONS"]
[null,"Computer Usage",null,null,null,"$",null,"This form has been received and is judged to be consistent with the objectives and capabilities of the unit receiving the funding and represented by the signatures below.  The proposed effort is considered compatible with other University duties of the Investigator(s) and consistent with University policies."]
[null,"Printing/Copying",null,null,null,"$"]
[null,"Honoraria Services",null,null,null,"$"]
[null,"Postage",null,null,null,"$",null,"Authorization on behalf of:",null,{"$f":"E9","v":0}]
[null,"Other Direct Costs",null,null,null,"$",null,"Printed Name of Authorizer:"]
[null,"Participant Support Costs",null,null,null,"$",null,"Signature & Date:"]
[null,"TOTAL DIRECT COSTS",null,null,null,"$",{"$f":"SUM(G22:G40)","v":0},"Authorization on behalf of:",null,{"$f":"K10","v":0}]
[null,"Indirect Costs ",null,"Rate:",{"$f":"'SUM of SAL Lines'!E26","v":0},"$",null,"Printed Name of Authorizer:"]
[null,null,null,null,"TOTAL ALL COSTS","$",{"$f":"+G41+G42","v":0},"Signature & Date:"]

{"sheet":"Line 5","index":6,"n_rows":43,"n_cols":11,"rows_kept":43,"cut":false,"hidden":false,"merged":[[31,7,31,9],[33,1,33,4],[33,7,33,11],[42,7,42,11],[34,7,36,11],[37,7,37,8],[37,9,37,11],[40,1,40,4],[40,7,40,8],[40,9,40,11],[20,1,20,6],[20,7,20,11],[23,7,23,9],[28,7,28,9],[29,1,29,4],[14,1,14,11],[9,5,9,6],[17,1,17,11],[18,8,18,9],[19,8,19,9],[8,4,8,10],[19,4,19,6],[7,4,7,6],[16,1,16,11],[0,1,0,11],[1,1,4,1],[2,4,2,6],[4,4,4,11],[5,1,8,1],[5,5,5,6],[5,9,5,10],[6,4,6,11],[10,1,10,11],[11,1,11,11],[12,1,12,11],[13,1,13,11]]}
[0,"1. AWARD INFORMATION"]
[null,"PRIMARY AWARD LINE",null,"PI Name:",{"$f":"'SUM of SAL Lines'!E3:G3","v":0},null,null,null,"Primary Grant Worktag:","GR-",{"$f":"'SUM of SAL Lines'!K3","v":0}]
[null,null,null,"PI Signature:",null,null,null,null,null,"GoldSheet Number:",{"$f":"'SUM of SAL Lines'!K4","v":0}]
[null,null,null,"Sponsor:",{"$f":"'SUM of SAL Lines'!E5:K5","v":0}]
[null,null,null,"Title of Project:",{"$f":"'SUM of SAL Lines'!E6:K6","v":0}]
[null,"SECONDARY AWARD LINE",null,"Period of Performance:","  From: ",null,null,"To:"]
[null,null,null,"Title (if different):"]
[null,null,null,"PI Name:",null,null,null,null,null,"Secondary Grang Worktag:  GR-"]
[null,null,null,"Lead Org Dept:"]
[null,null,null,"Cost Center:  CC",null,"Business Unit:  BU",null,null,null,"RRC/Org Unit:"]
[null,"2.SECONDARY AWARD LINE PRINCIPAL INVESTIGATOR CERTIFICATIONS"]
[null,"* I agree to be bound by the terms and conditions of the outside grant or contract which supports this activity, and, in consideration of the information\n   and facilities made available to me by the University or the outside sponsor, to assign copyright and patent rights to the Iowa State University \n   Research Foundation, Inc. in accordance with the terms and conditions stated in the Faculty Handbook."]
[null,"* I certify that I have not been debarred, suspended, or declared ineligible to receive agency funds."]
[null,"  Conflict of Interest and Commitment (COIC): Real or perceived conflicts of interest may exist in a project when an investigator or a member\n  of his or her family has: a management role in, financial interest in, or a paid consulting agreement with the sponsor or paid consulting\n  agreements with other entities on topics related to the project. By signing this form, all investigators certify that they have read and\n  understand ISU's Conflict of Interest and Commitment Policy [http://www.provost.iastate.edu/help/coic] and made all disclosures required\n  by it. For further information, call 4-7793."]
[null,"                                                        Is there a potential for Conflict of Interest?"]
[]
[null,"                                                        If yes, are disclosure procedures being implemented?"]
[null,"* I certify to the best of my knowledge that the statements contained in this form are true."]
[null,null,null,"_________________________________________________"]
[null,null,null,"Signature of:",{"$f":"E8","v":0},null,null,null,"Date"]
[null,"3. SECONDARY AWARD LINE BUDGET TO BE ENTERED",null,null,null,null,null,"4. SECONDARY AWARD LINE COMPLIANCES"]
[null,"Salary/Wages",null,null,null,"$",null,"1. Will vertebrate animals be used in this project?"]
[null,"Payroll Benefits",null,null,null,"$"]
[null,"Equipment",null,null,null,"$",null,"      If yes, provide IACUC Log #:"]
[null,"Travel - Domestic",null,null,null,"$",null,"2. Are the following safety or health hazards involved?"]
[null,"Travel - Foreign",null,null,null,"$",null,"     a. Recombinant DNA, Human, or Animal Pathogens"]
[null,"Student Tuition",null,null,null,"$",null,"     b. Radiological Materials"]
[null,"Supplies/Materials",null,null,null,"$"]
[null,null,null,null,null,null,null,"If yes to either, provide IBC Log #:"]
[null,"Subcontracts ",null,null,null,null,null,"3. Will human subjects be used in this project?"]
[null,"Subcontracts - Burdenable",null,null,null,"$"]
[null,"Subcontracts - Nonburdenable",null,null,null,"$",null,"       If yes, provide IRB Log #:"]
[]
[null,"Other Direct Costs",null,null,null," ",null,"5. SECONDARY AWARD LINE AUTHORIZATIONS"]
[null,"Computer Usage",null,null,null,"$",null,"This form has been received and is judged to be consistent with the objectives and capabilities of the unit receiving the funding and represented by the signatures below.  The proposed effort is considered compatible with other University duties of the Investigator(s) and consistent with University policies."]
[null,"Printing/Copying",null,null,null,"$"]
[null,"Honoraria Services",null,null,null,"$"]
[null,"Postage",null,null,null,"$",null,"Authorization on behalf of:",null,{"$f":"E9","v":0}]
[null,"Other Direct Costs",null,null,null,"$",null,"Printed Name of Authorizer:"]
[null,"Participant Support Costs",null,null,null,"$",null,"Signature & Date:"]
[null,"TOTAL DIRECT COSTS",null,null,null,"$",{"$f":"SUM(G22:G40)","v":0},"Authorization on behalf of:",null,{"$f":"K10","v":0}]
[null,"Indirect Costs ",null,"Rate:",{"$f":"'SUM of SAL Lines'!E26","v":0},"$",null,"Printed Name of Authorizer:"]
[null,null,null,null,"TOTAL ALL COSTS","$",{"$f":"+G41+G42","v":0},"Signature & Date:"]

{"sheet":"Line 6","index":7,"n_rows":43,"n_cols":11,"rows_kept":43,"cut":false,"hidden":false,"merged":[[31,7,31,9],[33,1,33,4],[33,7,33,11],[42,7,42,11],[34,7,36,11],[37,7,37,8],[37,9,37,11],[40,1,40,4],[40,7,40,8],[40,9,40,11],[20,1,20,6],[20,7,20,11],[23,7,23,9],[28,7,28,9],[29,1,29,4],[14,1,14,11],[9,5,9,6],[17,1,17,11],[18,8,18,9],[19,8,19,9],[8,4,8,10],[19,4,19,6],[7,4,7,6],[16,1,16,11],[0,1,0,11],[1,1,4,1],[2,4,2,6],[4,4,4,11],[5,1,8,1],[5,5,5,6],[5,9,5,10],[6,4,6,11],[10,1,10,11],[11,1,11,11],[12,1,12,11],[13,1,13,11]]}
[0,"1. AWARD INFORMATION"]
[null,"PRIMARY AWARD LINE",null,"PI Name:",{"$f":"'SUM of SAL Lines'!E3:G3","v":0},null,null,null,"Primary Grant Worktag:","GR-",{"$f":"'SUM of SAL Lines'!K3","v":0}]
[null,null,null,"PI Signature:",null,null,null,null,null,"GoldSheet Number:",{"$f":"'SUM of SAL Lines'!K4","v":0}]
[null,null,null,"Sponsor:",{"$f":"'SUM of SAL Lines'!E5:K5","v":0}]
[null,null,null,"Title of Project:",{"$f":"'SUM of SAL Lines'!E6:K6","v":0}]
[null,"SECONDARY AWARD LINE",null,"Period of Performance:","  From: ",null,null,"To:"]
[null,null,null,"Title (if different):"]
[null,null,null,"PI Name:",null,null,null,null,null,"Secondary Grang Worktag:  GR-"]
[null,null,null,"Lead Org Dept:"]
[null,null,null,"Cost Center:  CC",null,"Business Unit:  BU",null,null,null,"RRC/Org Unit:"]
[null,"2.SECONDARY AWARD LINE PRINCIPAL INVESTIGATOR CERTIFICATIONS"]
[null,"* I agree to be bound by the terms and conditions of the outside grant or contract which supports this activity, and, in consideration of the information\n   and facilities made available to me by the University or the outside sponsor, to assign copyright and patent rights to the Iowa State University \n   Research Foundation, Inc. in accordance with the terms and conditions stated in the Faculty Handbook."]
[null,"* I certify that I have not been debarred, suspended, or declared ineligible to receive agency funds."]
[null,"  Conflict of Interest and Commitment (COIC): Real or perceived conflicts of interest may exist in a project when an investigator or a member\n  of his or her family has: a management role in, financial interest in, or a paid consulting agreement with the sponsor or paid consulting\n  agreements with other entities on topics related to the project. By signing this form, all investigators certify that they have read and\n  understand ISU's Conflict of Interest and Commitment Policy [http://www.provost.iastate.edu/help/coic] and made all disclosures required\n  by it. For further information, call 4-7793."]
[null,"                                                        Is there a potential for Conflict of Interest?"]
[]
[null,"                                                        If yes, are disclosure procedures being implemented?"]
[null,"* I certify to the best of my knowledge that the statements contained in this form are true."]
[null,null,null,"_________________________________________________"]
[null,null,null,"Signature of:",{"$f":"E8","v":0},null,null,null,"Date"]
[null,"3. SECONDARY AWARD LINE BUDGET TO BE ENTERED",null,null,null,null,null,"4. SECONDARY AWARD LINE COMPLIANCES"]
[null,"Salary/Wages",null,null,null,"$",null,"1. Will vertebrate animals be used in this project?"]
[null,"Payroll Benefits",null,null,null,"$"]
[null,"Equipment",null,null,null,"$",null,"      If yes, provide IACUC Log #:"]
[null,"Travel - Domestic",null,null,null,"$",null,"2. Are the following safety or health hazards involved?"]
[null,"Travel - Foreign",null,null,null,"$",null,"     a. Recombinant DNA, Human, or Animal Pathogens"]
[null,"Student Tuition",null,null,null,"$",null,"     b. Radiological Materials"]
[null,"Supplies/Materials",null,null,null,"$"]
[null,null,null,null,null,null,null,"If yes to either, provide IBC Log #:"]
[null,"Subcontracts ",null,null,null,null,null,"3. Will human subjects be used in this project?"]
[null,"Subcontracts - Burdenable",null,null,null,"$"]
[null,"Subcontracts - Nonburdenable",null,null,null,"$",null,"       If yes, provide IRB Log #:"]
[]
[null,"Other Direct Costs",null,null,null," ",null,"5. SECONDARY AWARD LINE AUTHORIZATIONS"]
[null,"Computer Usage",null,null,null,"$",null,"This form has been received and is judged to be consistent with the objectives and capabilities of the unit receiving the funding and represented by the signatures below.  The proposed effort is considered compatible with other University duties of the Investigator(s) and consistent with University policies."]
[null,"Printing/Copying",null,null,null,"$"]
[null,"Honoraria Services",null,null,null,"$"]
[null,"Postage",null,null,null,"$",null,"Authorization on behalf of:",null,{"$f":"E9","v":0}]
[null,"Other Direct Costs",null,null,null,"$",null,"Printed Name of Authorizer:"]
[null,"Participant Support Costs",null,null,null,"$",null,"Signature & Date:"]
[null,"TOTAL DIRECT COSTS",null,null,null,"$",{"$f":"SUM(G22:G40)","v":0},"Authorization on behalf of:",null,{"$f":"K10","v":0}]
[null,"Indirect Costs ",null,"Rate:",{"$f":"'SUM of SAL Lines'!E26","v":0},"$",null,"Printed Name of Authorizer:"]
[null,null,null,null,"TOTAL ALL COSTS","$",{"$f":"+G41+G42","v":0},"Signature & Date:"]

{"sheet":"Line 7","index":8,"n_rows":43,"n_cols":11,"rows_kept":43,"cut":false,"hidden":false,"merged":[[31,7,31,9],[33,1,33,4],[33,7,33,11],[42,7,42,11],[34,7,36,11],[37,7,37,8],[37,9,37,11],[40,1,40,4],[40,7,40,8],[40,9,40,11],[20,1,20,6],[20,7,20,11],[23,7,23,9],[28,7,28,9],[29,1,29,4],[14,1,14,11],[9,5,9,6],[17,1,17,11],[18,8,18,9],[19,8,19,9],[8,4,8,10],[19,4,19,6],[7,4,7,6],[16,1,16,11],[0,1,0,11],[1,1,4,1],[2,4,2,6],[4,4,4,11],[5,1,8,1],[5,5,5,6],[5,9,5,10],[6,4,6,11],[10,1,10,11],[11,1,11,11],[12,1,12,11],[13,1,13,11]]}
[0,"1. AWARD INFORMATION"]
[null,"PRIMARY AWARD LINE",null,"PI Name:",{"$f":"'SUM of SAL Lines'!E3:G3","v":0},null,null,null,"Primary Grant Worktag:","GR-",{"$f":"'SUM of SAL Lines'!K3","v":0}]
[null,null,null,"PI Signature:",null,null,null,null,null,"GoldSheet Number:",{"$f":"'SUM of SAL Lines'!K4","v":0}]
[null,null,null,"Sponsor:",{"$f":"'SUM of SAL Lines'!E5:K5","v":0}]
[null,null,null,"Title of Project:",{"$f":"'SUM of SAL Lines'!E6:K6","v":0}]
[null,"SECONDARY AWARD LINE",null,"Period of Performance:","  From: ",null,null,"To:"]
[null,null,null,"Title (if different):"]
[null,null,null,"PI Name:",null,null,null,null,null,"Secondary Grang Worktag:  GR-"]
[null,null,null,"Lead Org Dept:"]
[null,null,null,"Cost Center:  CC",null,"Business Unit:  BU",null,null,null,"RRC/Org Unit:"]
[null,"2.SECONDARY AWARD LINE PRINCIPAL INVESTIGATOR CERTIFICATIONS"]
[null,"* I agree to be bound by the terms and conditions of the outside grant or contract which supports this activity, and, in consideration of the information\n   and facilities made available to me by the University or the outside sponsor, to assign copyright and patent rights to the Iowa State University \n   Research Foundation, Inc. in accordance with the terms and conditions stated in the Faculty Handbook."]
[null,"* I certify that I have not been debarred, suspended, or declared ineligible to receive agency funds."]
[null,"  Conflict of Interest and Commitment (COIC): Real or perceived conflicts of interest may exist in a project when an investigator or a member\n  of his or her family has: a management role in, financial interest in, or a paid consulting agreement with the sponsor or paid consulting\n  agreements with other entities on topics related to the project. By signing this form, all investigators certify that they have read and\n  understand ISU's Conflict of Interest and Commitment Policy [http://www.provost.iastate.edu/help/coic] and made all disclosures required\n  by it. For further information, call 4-7793."]
[null,"                                                        Is there a potential for Conflict of Interest?"]
[]
[null,"                                                        If yes, are disclosure procedures being implemented?"]
[null,"* I certify to the best of my knowledge that the statements contained in this form are true."]
[null,null,null,"_________________________________________________"]
[null,null,null,"Signature of:",{"$f":"E8","v":0},null,null,null,"Date"]
[null,"3. SECONDARY AWARD LINE BUDGET TO BE ENTERED",null,null,null,null,null,"4. SECONDARY AWARD LINE COMPLIANCES"]
[null,"Salary/Wages",null,null,null,"$",null,"1. Will vertebrate animals be used in this project?"]
[null,"Payroll Benefits",null,null,null,"$"]
[null,"Equipment",null,null,null,"$",null,"      If yes, provide IACUC Log #:"]
[null,"Travel - Domestic",null,null,null,"$",null,"2. Are the following safety or health hazards involved?"]
[null,"Travel - Foreign",null,null,null,"$",null,"     a. Recombinant DNA, Human, or Animal Pathogens"]
[null,"Student Tuition",null,null,null,"$",null,"     b. Radiological Materials"]
[null,"Supplies/Materials",null,null,null,"$"]
[null,null,null,null,null,null,null,"If yes to either, provide IBC Log #:"]
[null,"Subcontracts ",null,null,null,null,null,"3. Will human subjects be used in this project?"]
[null,"Subcontracts - Burdenable",null,null,null,"$"]
[null,"Subcontracts - Nonburdenable",null,null,null,"$",null,"       If yes, provide IRB Log #:"]
[]
[null,"Other Direct Costs",null,null,null," ",null,"5. SECONDARY AWARD LINE AUTHORIZATIONS"]
[null,"Computer Usage",null,null,null,"$",null,"This form has been received and is judged to be consistent with the objectives and capabilities of the unit receiving the funding and represented by the signatures below.  The proposed effort is considered compatible with other University duties of the Investigator(s) and consistent with University policies."]
[null,"Printing/Copying",null,null,null,"$"]
[null,"Honoraria Services",null,null,null,"$"]
[null,"Postage",null,null,null,"$",null,"Authorization on behalf of:",null,{"$f":"E9","v":0}]
[null,"Other Direct Costs",null,null,null,"$",null,"Printed Name of Authorizer:"]
[null,"Participant Support Costs",null,null,null,"$",null,"Signature & Date:"]
[null,"TOTAL DIRECT COSTS",null,null,null,"$",{"$f":"SUM(G22:G40)","v":0},"Authorization on behalf of:",null,{"$f":"K10","v":0}]
[null,"Indirect Costs ",null,"Rate:",{"$f":"'SUM of SAL Lines'!E26","v":0},"$",null,"Printed Name of Authorizer:"]
[null,null,null,null,"TOTAL ALL COSTS","$",{"$f":"+G41+G42","v":0},"Signature & Date:"]

{"sheet":"Line 8","index":9,"n_rows":43,"n_cols":11,"rows_kept":43,"cut":false,"hidden":false,"merged":[[31,7,31,9],[33,1,33,4],[33,7,33,11],[42,7,42,11],[34,7,36,11],[37,7,37,8],[37,9,37,11],[40,1,40,4],[40,7,40,8],[40,9,40,11],[20,1,20,6],[20,7,20,11],[23,7,23,9],[28,7,28,9],[29,1,29,4],[14,1,14,11],[9,5,9,6],[17,1,17,11],[18,8,18,9],[19,8,19,9],[8,4,8,10],[19,4,19,6],[7,4,7,6],[16,1,16,11],[0,1,0,11],[1,1,4,1],[2,4,2,6],[4,4,4,11],[5,1,8,1],[5,5,5,6],[5,9,5,10],[6,4,6,11],[10,1,10,11],[11,1,11,11],[12,1,12,11],[13,1,13,11]]}
[0,"1. AWARD INFORMATION"]
[null,"PRIMARY AWARD LINE",null,"PI Name:",{"$f":"'SUM of SAL Lines'!E3:G3","v":0},null,null,null,"Primary Grant Worktag:","GR-",{"$f":"'SUM of SAL Lines'!K3","v":0}]
[null,null,null,"PI Signature:",null,null,null,null,null,"GoldSheet Number:",{"$f":"'SUM of SAL Lines'!K4","v":0}]
[null,null,null,"Sponsor:",{"$f":"'SUM of SAL Lines'!E5:K5","v":0}]
[null,null,null,"Title of Project:",{"$f":"'SUM of SAL Lines'!E6:K6","v":0}]
[null,"SECONDARY AWARD LINE",null,"Period of Performance:","  From: ",null,null,"To:"]
[null,null,null,"Title (if different):"]
[null,null,null,"PI Name:",null,null,null,null,null,"Secondary Grang Worktag:  GR-"]
[null,null,null,"Lead Org Dept:"]
[null,null,null,"Cost Center:  CC",null,"Business Unit:  BU",null,null,null,"RRC/Org Unit:"]
[null,"2.SECONDARY AWARD LINE PRINCIPAL INVESTIGATOR CERTIFICATIONS"]
[null,"* I agree to be bound by the terms and conditions of the outside grant or contract which supports this activity, and, in consideration of the information\n   and facilities made available to me by the University or the outside sponsor, to assign copyright and patent rights to the Iowa State University \n   Research Foundation, Inc. in accordance with the terms and conditions stated in the Faculty Handbook."]
[null,"* I certify that I have not been debarred, suspended, or declared ineligible to receive agency funds."]
[null,"  Conflict of Interest and Commitment (COIC): Real or perceived conflicts of interest may exist in a project when an investigator or a member\n  of his or her family has: a management role in, financial interest in, or a paid consulting agreement with the sponsor or paid consulting\n  agreements with other entities on topics related to the project. By signing this form, all investigators certify that they have read and\n  understand ISU's Conflict of Interest and Commitment Policy [http://www.provost.iastate.edu/help/coic] and made all disclosures required\n  by it. For further information, call 4-7793."]
[null,"                                                        Is there a potential for Conflict of Interest?"]
[]
[null,"                                                        If yes, are disclosure procedures being implemented?"]
[null,"* I certify to the best of my knowledge that the statements contained in this form are true."]
[null,null,null,"_________________________________________________"]
[null,null,null,"Signature of:",{"$f":"E8","v":0},null,null,null,"Date"]
[null,"3. SECONDARY AWARD LINE BUDGET TO BE ENTERED",null,null,null,null,null,"4. SECONDARY AWARD LINE COMPLIANCES"]
[null,"Salary/Wages",null,null,null,"$",null,"1. Will vertebrate animals be used in this project?"]
[null,"Payroll Benefits",null,null,null,"$"]
[null,"Equipment",null,null,null,"$",null,"      If yes, provide IACUC Log #:"]
[null,"Travel - Domestic",null,null,null,"$",null,"2. Are the following safety or health hazards involved?"]
[null,"Travel - Foreign",null,null,null,"$",null,"     a. Recombinant DNA, Human, or Animal Pathogens"]
[null,"Student Tuition",null,null,null,"$",null,"     b. Radiological Materials"]
[null,"Supplies/Materials",null,null,null,"$"]
[null,null,null,null,null,null,null,"If yes to either, provide IBC Log #:"]
[null,"Subcontracts ",null,null,null,null,null,"3. Will human subjects be used in this project?"]
[null,"Subcontracts - Burdenable",null,null,null,"$"]
[null,"Subcontracts - Nonburdenable",null,null,null,"$",null,"       If yes, provide IRB Log #:"]
[]
[null,"Other Direct Costs",null,null,null," ",null,"5. SECONDARY AWARD LINE AUTHORIZATIONS"]
[null,"Computer Usage",null,null,null,"$",null,"This form has been received and is judged to be consistent with the objectives and capabilities of the unit receiving the funding and represented by the signatures below.  The proposed effort is considered compatible with other University duties of the Investigator(s) and consistent with University policies."]
[null,"Printing/Copying",null,null,null,"$"]
[null,"Honoraria Services",null,null,null,"$"]
[null,"Postage",null,null,null,"$",null,"Authorization on behalf of:",null,{"$f":"E9","v":0}]
[null,"Other Direct Costs",null,null,null,"$",null,"Printed Name of Authorizer:"]
[null,"Participant Support Costs",null,null,null,"$",null,"Signature & Date:"]
[null,"TOTAL DIRECT COSTS",null,null,null,"$",{"$f":"SUM(G22:G40)","v":0},"Authorization on behalf of:",null,{"$f":"K10","v":0}]
[null,"Indirect Costs ",null,"Rate:",{"$f":"'SUM of SAL Lines'!E26","v":0},"$",null,"Printed Name of Authorizer:"]
[null,null,null,null,"TOTAL ALL COSTS","$",{"$f":"+G41+G42","v":0},"Signature & Date:"]

{"sheet":"Line 9","index":10,"n_rows":43,"n_cols":11,"rows_kept":43,"cut":false,"hidden":false,"merged":[[31,7,31,9],[33,1,33,4],[33,7,33,11],[42,7,42,11],[34,7,36,11],[37,7,37,8],[37,9,37,11],[40,1,40,4],[40,7,40,8],[40,9,40,11],[20,1,20,6],[20,7,20,11],[23,7,23,9],[28,7,28,9],[29,1,29,4],[14,1,14,11],[9,5,9,6],[17,1,17,11],[18,8,18,9],[19,8,19,9],[8,4,8,10],[19,4,19,6],[7,4,7,6],[16,1,16,11],[0,1,0,11],[1,1,4,1],[2,4,2,6],[4,4,4,11],[5,1,8,1],[5,5,5,6],[5,9,5,10],[6,4,6,11],[10,1,10,11],[11,1,11,11],[12,1,12,11],[13,1,13,11]]}
[0,"1. AWARD INFORMATION"]
[null,"PRIMARY AWARD LINE",null,"PI Name:",{"$f":"'SUM of SAL Lines'!E3:G3","v":0},null,null,null,"Primary Grant Worktag:","GR-",{"$f":"'SUM of SAL Lines'!K3","v":0}]
[null,null,null,"PI Signature:",null,null,null,null,null,"GoldSheet Number:",{"$f":"'SUM of SAL Lines'!K4","v":0}]
[null,null,null,"Sponsor:",{"$f":"'SUM of SAL Lines'!E5:K5","v":0}]
[null,null,null,"Title of Project:",{"$f":"'SUM of SAL Lines'!E6:K6","v":0}]
[null,"SECONDARY AWARD LINE",null,"Period of Performance:","  From: ",null,null,"To:"]
[null,null,null,"Title (if different):"]
[null,null,null,"PI Name:",null,null,null,null,null,"Secondary Grang Worktag:  GR-"]
[null,null,null,"Lead Org Dept:"]
[null,null,null,"Cost Center:  CC",null,"Business Unit:  BU",null,null,null,"RRC/Org Unit:"]
[null,"2.SECONDARY AWARD LINE PRINCIPAL INVESTIGATOR CERTIFICATIONS"]
[null,"* I agree to be bound by the terms and conditions of the outside grant or contract which supports this activity, and, in consideration of the information\n   and facilities made available to me by the University or the outside sponsor, to assign copyright and patent rights to the Iowa State University \n   Research Foundation, Inc. in accordance with the terms and conditions stated in the Faculty Handbook."]
[null,"* I certify that I have not been debarred, suspended, or declared ineligible to receive agency funds."]
[null,"  Conflict of Interest and Commitment (COIC): Real or perceived conflicts of interest may exist in a project when an investigator or a member\n  of his or her family has: a management role in, financial interest in, or a paid consulting agreement with the sponsor or paid consulting\n  agreements with other entities on topics related to the project. By signing this form, all investigators certify that they have read and\n  understand ISU's Conflict of Interest and Commitment Policy [http://www.provost.iastate.edu/help/coic] and made all disclosures required\n  by it. For further information, call 4-7793."]
[null,"                                                        Is there a potential for Conflict of Interest?"]
[]
[null,"                                                        If yes, are disclosure procedures being implemented?"]
[null,"* I certify to the best of my knowledge that the statements contained in this form are true."]
[null,null,null,"_________________________________________________"]
[null,null,null,"Signature of:",{"$f":"E8","v":0},null,null,null,"Date"]
[null,"3. SECONDARY AWARD LINE BUDGET TO BE ENTERED",null,null,null,null,null,"4. SECONDARY AWARD LINE COMPLIANCES"]
[null,"Salary/Wages",null,null,null,"$",null,"1. Will vertebrate animals be used in this project?"]
[null,"Payroll Benefits",null,null,null,"$"]
[null,"Equipment",null,null,null,"$",null,"      If yes, provide IACUC Log #:"]
[null,"Travel - Domestic",null,null,null,"$",null,"2. Are the following safety or health hazards involved?"]
[null,"Travel - Foreign",null,null,null,"$",null,"     a. Recombinant DNA, Human, or Animal Pathogens"]
[null,"Student Tuition",null,null,null,"$",null,"     b. Radiological Materials"]
[null,"Supplies/Materials",null,null,null,"$"]
[null,null,null,null,null,null,null,"If yes to either, provide IBC Log #:"]
[null,"Subcontracts ",null,null,null,null,null,"3. Will human subjects be used in this project?"]
[null,"Subcontracts - Burdenable",null,null,null,"$"]
[null,"Subcontracts - Nonburdenable",null,null,null,"$",null,"       If yes, provide IRB Log #:"]
[]
[null,"Other Direct Costs",null,null,null," ",null,"5. SECONDARY AWARD LINE AUTHORIZATIONS"]
[null,"Computer Usage",null,null,null,"$",null,"This form has been received and is judged to be consistent with the objectives and capabilities of the unit receiving the funding and represented by the signatures below.  The proposed effort is considered compatible with other University duties of the Investigator(s) and consistent with University policies."]
[null,"Printing/Copying",null,null,null,"$"]
[null,"Honoraria Services",null,null,null,"$"]
[null,"Postage",null,null,null,"$",null,"Authorization on behalf of:",null,{"$f":"E9","v":0}]
[null,"Other Direct Costs",null,null,null,"$",null,"Printed Name of Authorizer:"]
[null,"Participant Support Costs",null,null,null,"$",null,"Signature & Date:"]
[null,"TOTAL DIRECT COSTS",null,null,null,"$",{"$f":"SUM(G22:G40)","v":0},"Authorization on behalf of:",null,{"$f":"K10","v":0}]
[null,"Indirect Costs ",null,"Rate:",{"$f":"'SUM of SAL Lines'!E26","v":0},"$",null,"Printed Name of Authorizer:"]
[null,null,null,null,"TOTAL ALL COSTS","$",{"$f":"+G41+G42","v":0},"Signature & Date:"]

{"sheet":"Line 10","index":11,"n_rows":43,"n_cols":11,"rows_kept":43,"cut":false,"hidden":false,"merged":[[31,7,31,9],[33,1,33,4],[33,7,33,11],[42,7,42,11],[34,7,36,11],[37,7,37,8],[37,9,37,11],[40,1,40,4],[40,7,40,8],[40,9,40,11],[20,1,20,6],[20,7,20,11],[23,7,23,9],[28,7,28,9],[29,1,29,4],[14,1,14,11],[9,5,9,6],[17,1,17,11],[18,8,18,9],[19,8,19,9],[8,4,8,10],[19,4,19,6],[7,4,7,6],[16,1,16,11],[0,1,0,11],[1,1,4,1],[2,4,2,6],[4,4,4,11],[5,1,8,1],[5,5,5,6],[5,9,5,10],[6,4,6,11],[10,1,10,11],[11,1,11,11],[12,1,12,11],[13,1,13,11]]}
[0,"1. AWARD INFORMATION"]
[null,"PRIMARY AWARD LINE",null,"PI Name:",{"$f":"'SUM of SAL Lines'!E3:G3","v":0},null,null,null,"Primary Grant Worktag:","GR-",{"$f":"'SUM of SAL Lines'!K3","v":0}]
[null,null,null,"PI Signature:",null,null,null,null,null,"GoldSheet Number:",{"$f":"'SUM of SAL Lines'!K4","v":0}]
[null,null,null,"Sponsor:",{"$f":"'SUM of SAL Lines'!E5:K5","v":0}]
[null,null,null,"Title of Project:",{"$f":"'SUM of SAL Lines'!E6:K6","v":0}]
[null,"SECONDARY AWARD LINE",null,"Period of Performance:","  From: ",null,null,"To:"]
[null,null,null,"Title (if different):"]
[null,null,null,"PI Name:",null,null,null,null,null,"Secondary Grang Worktag:  GR-"]
[null,null,null,"Lead Org Dept:"]
[null,null,null,"Cost Center:  CC",null,"Business Unit:  BU",null,null,null,"RRC/Org Unit:"]
[null,"2.SECONDARY AWARD LINE PRINCIPAL INVESTIGATOR CERTIFICATIONS"]
[null,"* I agree to be bound by the terms and conditions of the outside grant or contract which supports this activity, and, in consideration of the information\n   and facilities made available to me by the University or the outside sponsor, to assign copyright and patent rights to the Iowa State University \n   Research Foundation, Inc. in accordance with the terms and conditions stated in the Faculty Handbook."]
[null,"* I certify that I have not been debarred, suspended, or declared ineligible to receive agency funds."]
[null,"  Conflict of Interest and Commitment (COIC): Real or perceived conflicts of interest may exist in a project when an investigator or a member\n  of his or her family has: a management role in, financial interest in, or a paid consulting agreement with the sponsor or paid consulting\n  agreements with other entities on topics related to the project. By signing this form, all investigators certify that they have read and\n  understand ISU's Conflict of Interest and Commitment Policy [http://www.provost.iastate.edu/help/coic] and made all disclosures required\n  by it. For further information, call 4-7793."]
[null,"                                                        Is there a potential for Conflict of Interest?"]
[]
[null,"                                                        If yes, are disclosure procedures being implemented?"]
[null,"* I certify to the best of my knowledge that the statements contained in this form are true."]
[null,null,null,"_________________________________________________"]
[null,null,null,"Signature of:",{"$f":"E8","v":0},null,null,null,"Date"]
[null,"3. SECONDARY AWARD LINE BUDGET TO BE ENTERED",null,null,null,null,null,"4. SECONDARY AWARD LINE COMPLIANCES"]
[null,"Salary/Wages",null,null,null,"$",null,"1. Will vertebrate animals be used in this project?"]
[null,"Payroll Benefits",null,null,null,"$"]
[null,"Equipment",null,null,null,"$",null,"      If yes, provide IACUC Log #:"]
[null,"Travel - Domestic",null,null,null,"$",null,"2. Are the following safety or health hazards involved?"]
[null,"Travel - Foreign",null,null,null,"$",null,"     a. Recombinant DNA, Human, or Animal Pathogens"]
[null,"Student Tuition",null,null,null,"$",null,"     b. Radiological Materials"]
[null,"Supplies/Materials",null,null,null,"$"]
[null,null,null,null,null,null,null,"If yes to either, provide IBC Log #:"]
[null,"Subcontracts ",null,null,null,null,null,"3. Will human subjects be used in this project?"]
[null,"Subcontracts - Burdenable",null,null,null,"$"]
[null,"Subcontracts - Nonburdenable",null,null,null,"$",null,"       If yes, provide IRB Log #:"]
[]
[null,"Other Direct Costs",null,null,null," ",null,"5. SECONDARY AWARD LINE AUTHORIZATIONS"]
[null,"Computer Usage",null,null,null,"$",null,"This form has been received and is judged to be consistent with the objectives and capabilities of the unit receiving the funding and represented by the signatures below.  The proposed effort is considered compatible with other University duties of the Investigator(s) and consistent with University policies."]
[null,"Printing/Copying",null,null,null,"$"]
[null,"Honoraria Services",null,null,null,"$"]
[null,"Postage",null,null,null,"$",null,"Authorization on behalf of:",null,{"$f":"E9","v":0}]
[null,"Other Direct Costs",null,null,null,"$",null,"Printed Name of Authorizer:"]
[null,"Participant Support Costs",null,null,null,"$",null,"Signature & Date:"]
[null,"TOTAL DIRECT COSTS",null,null,null,"$",{"$f":"SUM(G22:G40)","v":0},"Authorization on behalf of:",null,{"$f":"K10","v":0}]
[null,"Indirect Costs ",null,"Rate:",{"$f":"'SUM of SAL Lines'!E26","v":0},"$",null,"Printed Name of Authorizer:"]
[null,null,null,null,"TOTAL ALL COSTS","$",{"$f":"+G41+G42","v":0},"Signature & Date:"]

{"sheet":"Line 11","index":12,"n_rows":43,"n_cols":11,"rows_kept":43,"cut":false,"hidden":false,"merged":[[31,7,31,9],[33,1,33,4],[33,7,33,11],[42,7,42,11],[34,7,36,11],[37,7,37,8],[37,9,37,11],[40,1,40,4],[40,7,40,8],[40,9,40,11],[20,1,20,6],[20,7,20,11],[23,7,23,9],[28,7,28,9],[29,1,29,4],[14,1,14,11],[9,5,9,6],[17,1,17,11],[18,8,18,9],[19,8,19,9],[8,4,8,10],[19,4,19,6],[7,4,7,6],[16,1,16,11],[0,1,0,11],[1,1,4,1],[2,4,2,6],[4,4,4,11],[5,1,8,1],[5,5,5,6],[5,9,5,10],[6,4,6,11],[10,1,10,11],[11,1,11,11],[12,1,12,11],[13,1,13,11]]}
[0,"1. AWARD INFORMATION"]
[null,"PRIMARY AWARD LINE",null,"PI Name:",{"$f":"'SUM of SAL Lines'!E3:G3","v":0},null,null,null,"Primary Grant Worktag:","GR-",{"$f":"'SUM of SAL Lines'!K3","v":0}]
[null,null,null,"PI Signature:",null,null,null,null,null,"GoldSheet Number:",{"$f":"'SUM of SAL Lines'!K4","v":0}]
[null,null,null,"Sponsor:",{"$f":"'SUM of SAL Lines'!E5:K5","v":0}]
[null,null,null,"Title of Project:",{"$f":"'SUM of SAL Lines'!E6:K6","v":0}]
[null,"SECONDARY AWARD LINE",null,"Period of Performance:","  From: ",null,null,"To:"]
[null,null,null,"Title (if different):"]
[null,null,null,"PI Name:",null,null,null,null,null,"Secondary Grang Worktag:  GR-"]
[null,null,null,"Lead Org Dept:"]
[null,null,null,"Cost Center:  CC",null,"Business Unit:  BU",null,null,null,"RRC/Org Unit:"]
[null,"2.SECONDARY AWARD LINE PRINCIPAL INVESTIGATOR CERTIFICATIONS"]
[null,"* I agree to be bound by the terms and conditions of the outside grant or contract which supports this activity, and, in consideration of the information\n   and facilities made available to me by the University or the outside sponsor, to assign copyright and patent rights to the Iowa State University \n   Research Foundation, Inc. in accordance with the terms and conditions stated in the Faculty Handbook."]
[null,"* I certify that I have not been debarred, suspended, or declared ineligible to receive agency funds."]
[null,"  Conflict of Interest and Commitment (COIC): Real or perceived conflicts of interest may exist in a project when an investigator or a member\n  of his or her family has: a management role in, financial interest in, or a paid consulting agreement with the sponsor or paid consulting\n  agreements with other entities on topics related to the project. By signing this form, all investigators certify that they have read and\n  understand ISU's Conflict of Interest and Commitment Policy [http://www.provost.iastate.edu/help/coic] and made all disclosures required\n  by it. For further information, call 4-7793."]
[null,"                                                        Is there a potential for Conflict of Interest?"]
[]
[null,"                                                        If yes, are disclosure procedures being implemented?"]
[null,"* I certify to the best of my knowledge that the statements contained in this form are true."]
[null,null,null,"_________________________________________________"]
[null,null,null,"Signature of:",{"$f":"E8","v":0},null,null,null,"Date"]
[null,"3. SECONDARY AWARD LINE BUDGET TO BE ENTERED",null,null,null,null,null,"4. SECONDARY AWARD LINE COMPLIANCES"]
[null,"Salary/Wages",null,null,null,"$",null,"1. Will vertebrate animals be used in this project?"]
[null,"Payroll Benefits",null,null,null,"$"]
[null,"Equipment",null,null,null,"$",null,"      If yes, provide IACUC Log #:"]
[null,"Travel - Domestic",null,null,null,"$",null,"2. Are the following safety or health hazards involved?"]
[null,"Travel - Foreign",null,null,null,"$",null,"     a. Recombinant DNA, Human, or Animal Pathogens"]
[null,"Student Tuition",null,null,null,"$",null,"     b. Radiological Materials"]
[null,"Supplies/Materials",null,null,null,"$"]
[null,null,null,null,null,null,null,"If yes to either, provide IBC Log #:"]
[null,"Subcontracts ",null,null,null,null,null,"3. Will human subjects be used in this project?"]
[null,"Subcontracts - Burdenable",null,null,null,"$"]
[null,"Subcontracts - Nonburdenable",null,null,null,"$",null,"       If yes, provide IRB Log #:"]
[]
[null,"Other Direct Costs",null,null,null," ",null,"5. SECONDARY AWARD LINE AUTHORIZATIONS"]
[null,"Computer Usage",null,null,null,"$",null,"This form has been received and is judged to be consistent with the objectives and capabilities of the unit receiving the funding and represented by the signatures below.  The proposed effort is considered compatible with other University duties of the Investigator(s) and consistent with University policies."]
[null,"Printing/Copying",null,null,null,"$"]
[null,"Honoraria Services",null,null,null,"$"]
[null,"Postage",null,null,null,"$",null,"Authorization on behalf of:",null,{"$f":"E9","v":0}]
[null,"Other Direct Costs",null,null,null,"$",null,"Printed Name of Authorizer:"]
[null,"Participant Support Costs",null,null,null,"$",null,"Signature & Date:"]
[null,"TOTAL DIRECT COSTS",null,null,null,"$",{"$f":"SUM(G22:G40)","v":0},"Authorization on behalf of:",null,{"$f":"K10","v":0}]
[null,"Indirect Costs ",null,"Rate:",{"$f":"'SUM of SAL Lines'!E26","v":0},"$",null,"Printed Name of Authorizer:"]
[null,null,null,null,"TOTAL ALL COSTS","$",{"$f":"+G41+G42","v":0},"Signature & Date:"]

{"sheet":"Line 12","index":13,"n_rows":43,"n_cols":11,"rows_kept":43,"cut":false,"hidden":false,"merged":[[31,7,31,9],[33,1,33,4],[33,7,33,11],[42,7,42,11],[34,7,36,11],[37,7,37,8],[37,9,37,11],[40,1,40,4],[40,7,40,8],[40,9,40,11],[20,1,20,6],[20,7,20,11],[23,7,23,9],[28,7,28,9],[29,1,29,4],[14,1,14,11],[9,5,9,6],[17,1,17,11],[18,8,18,9],[19,8,19,9],[8,4,8,10],[19,4,19,6],[7,4,7,6],[16,1,16,11],[0,1,0,11],[1,1,4,1],[2,4,2,6],[4,4,4,11],[5,1,8,1],[5,5,5,6],[5,9,5,10],[6,4,6,11],[10,1,10,11],[11,1,11,11],[12,1,12,11],[13,1,13,11]]}
[0,"1. AWARD INFORMATION"]
[null,"PRIMARY AWARD LINE",null,"PI Name:",{"$f":"'SUM of SAL Lines'!E3:G3","v":0},null,null,null,"Primary Grant Worktag:","GR-",{"$f":"'SUM of SAL Lines'!K3","v":0}]
[null,null,null,"PI Signature:",null,null,null,null,null,"GoldSheet Number:",{"$f":"'SUM of SAL Lines'!K4","v":0}]
[null,null,null,"Sponsor:",{"$f":"'SUM of SAL Lines'!E5:K5","v":0}]
[null,null,null,"Title of Project:",{"$f":"'SUM of SAL Lines'!E6:K6","v":0}]
[null,"SECONDARY AWARD LINE",null,"Period of Performance:","  From: ",null,null,"To:"]
[null,null,null,"Title (if different):"]
[null,null,null,"PI Name:",null,null,null,null,null,"Secondary Grang Worktag:  GR-"]
[null,null,null,"Lead Org Dept:"]
[null,null,null,"Cost Center:  CC",null,"Business Unit:  BU",null,null,null,"RRC/Org Unit:"]
[null,"2.SECONDARY AWARD LINE PRINCIPAL INVESTIGATOR CERTIFICATIONS"]
[null,"* I agree to be bound by the terms and conditions of the outside grant or contract which supports this activity, and, in consideration of the information\n   and facilities made available to me by the University or the outside sponsor, to assign copyright and patent rights to the Iowa State University \n   Research Foundation, Inc. in accordance with the terms and conditions stated in the Faculty Handbook."]
[null,"* I certify that I have not been debarred, suspended, or declared ineligible to receive agency funds."]
[null,"  Conflict of Interest and Commitment (COIC): Real or perceived conflicts of interest may exist in a project when an investigator or a member\n  of his or her family has: a management role in, financial interest in, or a paid consulting agreement with the sponsor or paid consulting\n  agreements with other entities on topics related to the project. By signing this form, all investigators certify that they have read and\n  understand ISU's Conflict of Interest and Commitment Policy [http://www.provost.iastate.edu/help/coic] and made all disclosures required\n  by it. For further information, call 4-7793."]
[null,"                                                        Is there a potential for Conflict of Interest?"]
[]
[null,"                                                        If yes, are disclosure procedures being implemented?"]
[null,"* I certify to the best of my knowledge that the statements contained in this form are true."]
[null,null,null,"_________________________________________________"]
[null,null,null,"Signature of:",{"$f":"E8","v":0},null,null,null,"Date"]
[null,"3. SECONDARY AWARD LINE BUDGET TO BE ENTERED",null,null,null,null,null,"4. SECONDARY AWARD LINE COMPLIANCES"]
[null,"Salary/Wages",null,null,null,"$",null,"1. Will vertebrate animals be used in this project?"]
[null,"Payroll Benefits",null,null,null,"$"]
[null,"Equipment",null,null,null,"$",null,"      If yes, provide IACUC Log #:"]
[null,"Travel - Domestic",null,null,null,"$",null,"2. Are the following safety or health hazards involved?"]
[null,"Travel - Foreign",null,null,null,"$",null,"     a. Recombinant DNA, Human, or Animal Pathogens"]
[null,"Student Tuition",null,null,null,"$",null,"     b. Radiological Materials"]
[null,"Supplies/Materials",null,null,null,"$"]
[null,null,null,null,null,null,null,"If yes to either, provide IBC Log #:"]
[null,"Subcontracts ",null,null,null,null,null,"3. Will human subjects be used in this project?"]
[null,"Subcontracts - Burdenable",null,null,null,"$"]
[null,"Subcontracts - Nonburdenable",null,null,null,"$",null,"       If yes, provide IRB Log #:"]
[]
[null,"Other Direct Costs",null,null,null," ",null,"5. SECONDARY AWARD LINE AUTHORIZATIONS"]
[null,"Computer Usage",null,null,null,"$",null,"This form has been received and is judged to be consistent with the objectives and capabilities of the unit receiving the funding and represented by the signatures below.  The proposed effort is considered compatible with other University duties of the Investigator(s) and consistent with University policies."]
[null,"Printing/Copying",null,null,null,"$"]
[null,"Honoraria Services",null,null,null,"$"]
[null,"Postage",null,null,null,"$",null,"Authorization on behalf of:",null,{"$f":"E9","v":0}]
[null,"Other Direct Costs",null,null,null,"$",null,"Printed Name of Authorizer:"]
[null,"Participant Support Costs",null,null,null,"$",null,"Signature & Date:"]
[null,"TOTAL DIRECT COSTS",null,null,null,"$",{"$f":"SUM(G22:G40)","v":0},"Authorization on behalf of:",null,{"$f":"K10","v":0}]
[null,"Indirect Costs ",null,"Rate:",{"$f":"'SUM of SAL Lines'!E26","v":0},"$",null,"Printed Name of Authorizer:"]
[null,null,null,null,"TOTAL ALL COSTS","$",{"$f":"+G41+G42","v":0},"Signature & Date:"]

{"sheet":"Line 13","index":14,"n_rows":43,"n_cols":11,"rows_kept":43,"cut":false,"hidden":false,"merged":[[31,7,31,9],[33,1,33,4],[33,7,33,11],[42,7,42,11],[34,7,36,11],[37,7,37,8],[37,9,37,11],[40,1,40,4],[40,7,40,8],[40,9,40,11],[20,1,20,6],[20,7,20,11],[23,7,23,9],[28,7,28,9],[29,1,29,4],[14,1,14,11],[9,5,9,6],[17,1,17,11],[18,8,18,9],[19,8,19,9],[8,4,8,10],[19,4,19,6],[7,4,7,6],[16,1,16,11],[0,1,0,11],[1,1,4,1],[2,4,2,6],[4,4,4,11],[5,1,8,1],[5,5,5,6],[5,9,5,10],[6,4,6,11],[10,1,10,11],[11,1,11,11],[12,1,12,11],[13,1,13,11]]}
[0,"1. AWARD INFORMATION"]
[null,"PRIMARY AWARD LINE",null,"PI Name:",{"$f":"'SUM of SAL Lines'!E3:G3","v":0},null,null,null,"Primary Grant Worktag:","GR-",{"$f":"'SUM of SAL Lines'!K3","v":0}]
[null,null,null,"PI Signature:",null,null,null,null,null,"GoldSheet Number:",{"$f":"'SUM of SAL Lines'!K4","v":0}]
[null,null,null,"Sponsor:",{"$f":"'SUM of SAL Lines'!E5:K5","v":0}]
[null,null,null,"Title of Project:",{"$f":"'SUM of SAL Lines'!E6:K6","v":0}]
[null,"SECONDARY AWARD LINE",null,"Period of Performance:","  From: ",null,null,"To:"]
[null,null,null,"Title (if different):"]
[null,null,null,"PI Name:",null,null,null,null,null,"Secondary Grang Worktag:  GR-"]
[null,null,null,"Lead Org Dept:"]
[null,null,null,"Cost Center:  CC",null,"Business Unit:  BU",null,null,null,"RRC/Org Unit:"]
[null,"2.SECONDARY AWARD LINE PRINCIPAL INVESTIGATOR CERTIFICATIONS"]
[null,"* I agree to be bound by the terms and conditions of the outside grant or contract which supports this activity, and, in consideration of the information\n   and facilities made available to me by the University or the outside sponsor, to assign copyright and patent rights to the Iowa State University \n   Research Foundation, Inc. in accordance with the terms and conditions stated in the Faculty Handbook."]
[null,"* I certify that I have not been debarred, suspended, or declared ineligible to receive agency funds."]
[null,"  Conflict of Interest and Commitment (COIC): Real or perceived conflicts of interest may exist in a project when an investigator or a member\n  of his or her family has: a management role in, financial interest in, or a paid consulting agreement with the sponsor or paid consulting\n  agreements with other entities on topics related to the project. By signing this form, all investigators certify that they have read and\n  understand ISU's Conflict of Interest and Commitment Policy [http://www.provost.iastate.edu/help/coic] and made all disclosures required\n  by it. For further information, call 4-7793."]
[null,"                                                        Is there a potential for Conflict of Interest?"]
[]
[null,"                                                        If yes, are disclosure procedures being implemented?"]
[null,"* I certify to the best of my knowledge that the statements contained in this form are true."]
[null,null,null,"_________________________________________________"]
[null,null,null,"Signature of:",{"$f":"E8","v":0},null,null,null,"Date"]
[null,"3. SECONDARY AWARD LINE BUDGET TO BE ENTERED",null,null,null,null,null,"4. SECONDARY AWARD LINE COMPLIANCES"]
[null,"Salary/Wages",null,null,null,"$",null,"1. Will vertebrate animals be used in this project?"]
[null,"Payroll Benefits",null,null,null,"$"]
[null,"Equipment",null,null,null,"$",null,"      If yes, provide IACUC Log #:"]
[null,"Travel - Domestic",null,null,null,"$",null,"2. Are the following safety or health hazards involved?"]
[null,"Travel - Foreign",null,null,null,"$",null,"     a. Recombinant DNA, Human, or Animal Pathogens"]
[null,"Student Tuition",null,null,null,"$",null,"     b. Radiological Materials"]
[null,"Supplies/Materials",null,null,null,"$"]
[null,null,null,null,null,null,null,"If yes to either, provide IBC Log #:"]
[null,"Subcontracts ",null,null,null,null,null,"3. Will human subjects be used in this project?"]
[null,"Subcontracts - Burdenable",null,null,null,"$"]
[null,"Subcontracts - Nonburdenable",null,null,null,"$",null,"       If yes, provide IRB Log #:"]
[]
[null,"Other Direct Costs",null,null,null," ",null,"5. SECONDARY AWARD LINE AUTHORIZATIONS"]
[null,"Computer Usage",null,null,null,"$",null,"This form has been received and is judged to be consistent with the objectives and capabilities of the unit receiving the funding and represented by the signatures below.  The proposed effort is considered compatible with other University duties of the Investigator(s) and consistent with University policies."]
[null,"Printing/Copying",null,null,null,"$"]
[null,"Honoraria Services",null,null,null,"$"]
[null,"Postage",null,null,null,"$",null,"Authorization on behalf of:",null,{"$f":"E9","v":0}]
[null,"Other Direct Costs",null,null,null,"$",null,"Printed Name of Authorizer:"]
[null,"Participant Support Costs",null,null,null,"$",null,"Signature & Date:"]
[null,"TOTAL DIRECT COSTS",null,null,null,"$",{"$f":"SUM(G22:G40)","v":0},"Authorization on behalf of:",null,{"$f":"K10","v":0}]
[null,"Indirect Costs ",null,"Rate:",{"$f":"'SUM of SAL Lines'!E26","v":0},"$",null,"Printed Name of Authorizer:"]
[null,null,null,null,"TOTAL ALL COSTS","$",{"$f":"+G41+G42","v":0},"Signature & Date:"]

{"sheet":"Line 14","index":15,"n_rows":43,"n_cols":11,"rows_kept":43,"cut":false,"hidden":false,"merged":[[31,7,31,9],[33,1,33,4],[33,7,33,11],[42,7,42,11],[34,7,36,11],[37,7,37,8],[37,9,37,11],[40,1,40,4],[40,7,40,8],[40,9,40,11],[20,1,20,6],[20,7,20,11],[23,7,23,9],[28,7,28,9],[29,1,29,4],[14,1,14,11],[9,5,9,6],[17,1,17,11],[18,8,18,9],[19,8,19,9],[8,4,8,10],[19,4,19,6],[7,4,7,6],[16,1,16,11],[0,1,0,11],[1,1,4,1],[2,4,2,6],[4,4,4,11],[5,1,8,1],[5,5,5,6],[5,9,5,10],[6,4,6,11],[10,1,10,11],[11,1,11,11],[12,1,12,11],[13,1,13,11]]}
[0,"1. AWARD INFORMATION"]
[null,"PRIMARY AWARD LINE",null,"PI Name:",{"$f":"'SUM of SAL Lines'!E3:G3","v":0},null,null,null,"Primary Grant Worktag:","GR-",{"$f":"'SUM of SAL Lines'!K3","v":0}]
[null,null,null,"PI Signature:",null,null,null,null,null,"GoldSheet Number:",{"$f":"'SUM of SAL Lines'!K4","v":0}]
[null,null,null,"Sponsor:",{"$f":"'SUM of SAL Lines'!E5:K5","v":0}]
[null,null,null,"Title of Project:",{"$f":"'SUM of SAL Lines'!E6:K6","v":0}]
[null,"SECONDARY AWARD LINE",null,"Period of Performance:","  From: ",null,null,"To:"]
[null,null,null,"Title (if different):"]
[null,null,null,"PI Name:",null,null,null,null,null,"Secondary Grang Worktag:  GR-"]
[null,null,null,"Lead Org Dept:"]
[null,null,null,"Cost Center:  CC",null,"Business Unit:  BU",null,null,null,"RRC/Org Unit:"]
[null,"2.SECONDARY AWARD LINE PRINCIPAL INVESTIGATOR CERTIFICATIONS"]
[null,"* I agree to be bound by the terms and conditions of the outside grant or contract which supports this activity, and, in consideration of the information\n   and facilities made available to me by the University or the outside sponsor, to assign copyright and patent rights to the Iowa State University \n   Research Foundation, Inc. in accordance with the terms and conditions stated in the Faculty Handbook."]
[null,"* I certify that I have not been debarred, suspended, or declared ineligible to receive agency funds."]
[null,"  Conflict of Interest and Commitment (COIC): Real or perceived conflicts of interest may exist in a project when an investigator or a member\n  of his or her family has: a management role in, financial interest in, or a paid consulting agreement with the sponsor or paid consulting\n  agreements with other entities on topics related to the project. By signing this form, all investigators certify that they have read and\n  understand ISU's Conflict of Interest and Commitment Policy [http://www.provost.iastate.edu/help/coic] and made all disclosures required\n  by it. For further information, call 4-7793."]
[null,"                                                        Is there a potential for Conflict of Interest?"]
[]
[null,"                                                        If yes, are disclosure procedures being implemented?"]
[null,"* I certify to the best of my knowledge that the statements contained in this form are true."]
[null,null,null,"_________________________________________________"]
[null,null,null,"Signature of:",{"$f":"E8","v":0},null,null,null,"Date"]
[null,"3. SECONDARY AWARD LINE BUDGET TO BE ENTERED",null,null,null,null,null,"4. SECONDARY AWARD LINE COMPLIANCES"]
[null,"Salary/Wages",null,null,null,"$",null,"1. Will vertebrate animals be used in this project?"]
[null,"Payroll Benefits",null,null,null,"$"]
[null,"Equipment",null,null,null,"$",null,"      If yes, provide IACUC Log #:"]
[null,"Travel - Domestic",null,null,null,"$",null,"2. Are the following safety or health hazards involved?"]
[null,"Travel - Foreign",null,null,null,"$",null,"     a. Recombinant DNA, Human, or Animal Pathogens"]
[null,"Student Tuition",null,null,null,"$",null,"     b. Radiological Materials"]
[null,"Supplies/Materials",null,null,null,"$"]
[null,null,null,null,null,null,null,"If yes to either, provide IBC Log #:"]
[null,"Subcontracts ",null,null,null,null,null,"3. Will human subjects be used in this project?"]
[null,"Subcontracts - Burdenable",null,null,null,"$"]
[null,"Subcontracts - Nonburdenable",null,null,null,"$",null,"       If yes, provide IRB Log #:"]
[]
[null,"Other Direct Costs",null,null,null," ",null,"5. SECONDARY AWARD LINE AUTHORIZATIONS"]
[null,"Computer Usage",null,null,null,"$",null,"This form has been received and is judged to be consistent with the objectives and capabilities of the unit receiving the funding and represented by the signatures below.  The proposed effort is considered compatible with other University duties of the Investigator(s) and consistent with University policies."]
[null,"Printing/Copying",null,null,null,"$"]
[null,"Honoraria Services",null,null,null,"$"]
[null,"Postage",null,null,null,"$",null,"Authorization on behalf of:",null,{"$f":"E9","v":0}]
[null,"Other Direct Costs",null,null,null,"$",null,"Printed Name of Authorizer:"]
[null,"Participant Support Costs",null,null,null,"$",null,"Signature & Date:"]
[null,"TOTAL DIRECT COSTS",null,null,null,"$",{"$f":"SUM(G22:G40)","v":0},"Authorization on behalf of:",null,{"$f":"K10","v":0}]
[null,"Indirect Costs ",null,"Rate:",{"$f":"'SUM of SAL Lines'!E26","v":0},"$",null,"Printed Name of Authorizer:"]
[null,null,null,null,"TOTAL ALL COSTS","$",{"$f":"+G41+G42","v":0},"Signature & Date:"]

{"sheet":"Line 15","index":16,"n_rows":43,"n_cols":11,"rows_kept":43,"cut":false,"hidden":false,"merged":[[31,7,31,9],[33,1,33,4],[33,7,33,11],[42,7,42,11],[34,7,36,11],[37,7,37,8],[37,9,37,11],[40,1,40,4],[40,7,40,8],[40,9,40,11],[20,1,20,6],[20,7,20,11],[23,7,23,9],[28,7,28,9],[29,1,29,4],[14,1,14,11],[9,5,9,6],[17,1,17,11],[18,8,18,9],[19,8,19,9],[8,4,8,10],[19,4,19,6],[7,4,7,6],[16,1,16,11],[0,1,0,11],[1,1,4,1],[2,4,2,6],[4,4,4,11],[5,1,8,1],[5,5,5,6],[5,9,5,10],[6,4,6,11],[10,1,10,11],[11,1,11,11],[12,1,12,11],[13,1,13,11]]}
[0,"1. AWARD INFORMATION"]
[null,"PRIMARY AWARD LINE",null,"PI Name:",{"$f":"'SUM of SAL Lines'!E3:G3","v":0},null,null,null,"Primary Grant Worktag:","GR-",{"$f":"'SUM of SAL Lines'!K3","v":0}]
[null,null,null,"PI Signature:",null,null,null,null,null,"GoldSheet Number:",{"$f":"'SUM of SAL Lines'!K4","v":0}]
[null,null,null,"Sponsor:",{"$f":"'SUM of SAL Lines'!E5:K5","v":0}]
[null,null,null,"Title of Project:",{"$f":"'SUM of SAL Lines'!E6:K6","v":0}]
[null,"SECONDARY AWARD LINE",null,"Period of Performance:","  From: ",null,null,"To:"]
[null,null,null,"Title (if different):"]
[null,null,null,"PI Name:",null,null,null,null,null,"Secondary Grang Worktag:  GR-"]
[null,null,null,"Lead Org Dept:"]
[null,null,null,"Cost Center:  CC",null,"Business Unit:  BU",null,null,null,"RRC/Org Unit:"]
[null,"2.SECONDARY AWARD LINE PRINCIPAL INVESTIGATOR CERTIFICATIONS"]
[null,"* I agree to be bound by the terms and conditions of the outside grant or contract which supports this activity, and, in consideration of the information\n   and facilities made available to me by the University or the outside sponsor, to assign copyright and patent rights to the Iowa State University \n   Research Foundation, Inc. in accordance with the terms and conditions stated in the Faculty Handbook."]
[null,"* I certify that I have not been debarred, suspended, or declared ineligible to receive agency funds."]
[null,"  Conflict of Interest and Commitment (COIC): Real or perceived conflicts of interest may exist in a project when an investigator or a member\n  of his or her family has: a management role in, financial interest in, or a paid consulting agreement with the sponsor or paid consulting\n  agreements with other entities on topics related to the project. By signing this form, all investigators certify that they have read and\n  understand ISU's Conflict of Interest and Commitment Policy [http://www.provost.iastate.edu/help/coic] and made all disclosures required\n  by it. For further information, call 4-7793."]
[null,"                                                        Is there a potential for Conflict of Interest?"]
[]
[null,"                                                        If yes, are disclosure procedures being implemented?"]
[null,"* I certify to the best of my knowledge that the statements contained in this form are true."]
[null,null,null,"_________________________________________________"]
[null,null,null,"Signature of:",{"$f":"E8","v":0},null,null,null,"Date"]
[null,"3. SECONDARY AWARD LINE BUDGET TO BE ENTERED",null,null,null,null,null,"4. SECONDARY AWARD LINE COMPLIANCES"]
[null,"Salary/Wages",null,null,null,"$",null,"1. Will vertebrate animals be used in this project?"]
[null,"Payroll Benefits",null,null,null,"$"]
[null,"Equipment",null,null,null,"$",null,"      If yes, provide IACUC Log #:"]
[null,"Travel - Domestic",null,null,null,"$",null,"2. Are the following safety or health hazards involved?"]
[null,"Travel - Foreign",null,null,null,"$",null,"     a. Recombinant DNA, Human, or Animal Pathogens"]
[null,"Student Tuition",null,null,null,"$",null,"     b. Radiological Materials"]
[null,"Supplies/Materials",null,null,null,"$"]
[null,null,null,null,null,null,null,"If yes to either, provide IBC Log #:"]
[null,"Subcontracts ",null,null,null,null,null,"3. Will human subjects be used in this project?"]
[null,"Subcontracts - Burdenable",null,null,null,"$"]
[null,"Subcontracts - Nonburdenable",null,null,null,"$",null,"       If yes, provide IRB Log #:"]
[]
[null,"Other Direct Costs",null,null,null," ",null,"5. SECONDARY AWARD LINE AUTHORIZATIONS"]
[null,"Computer Usage",null,null,null,"$",null,"This form has been received and is judged to be consistent with the objectives and capabilities of the unit receiving the funding and represented by the signatures below.  The proposed effort is considered compatible with other University duties of the Investigator(s) and consistent with University policies."]
[null,"Printing/Copying",null,null,null,"$"]
[null,"Honoraria Services",null,null,null,"$"]
[null,"Postage",null,null,null,"$",null,"Authorization on behalf of:",null,{"$f":"E9","v":0}]
[null,"Other Direct Costs",null,null,null,"$",null,"Printed Name of Authorizer:"]
[null,"Participant Support Costs",null,null,null,"$",null,"Signature & Date:"]
[null,"TOTAL DIRECT COSTS",null,null,null,"$",{"$f":"SUM(G22:G40)","v":0},"Authorization on behalf of:",null,{"$f":"K10","v":0}]
[null,"Indirect Costs ",null,"Rate:",{"$f":"'SUM of SAL Lines'!E26","v":0},"$",null,"Printed Name of Authorizer:"]
[null,null,null,null,"TOTAL ALL COSTS","$",{"$f":"+G41+G42","v":0},"Signature & Date:"]

{"sheet":"Line 16","index":17,"n_rows":43,"n_cols":11,"rows_kept":43,"cut":false,"hidden":false,"merged":[[31,7,31,9],[33,1,33,4],[33,7,33,11],[42,7,42,11],[34,7,36,11],[37,7,37,8],[37,9,37,11],[40,1,40,4],[40,7,40,8],[40,9,40,11],[20,1,20,6],[20,7,20,11],[23,7,23,9],[28,7,28,9],[29,1,29,4],[14,1,14,11],[9,5,9,6],[17,1,17,11],[18,8,18,9],[19,8,19,9],[8,4,8,10],[19,4,19,6],[7,4,7,6],[16,1,16,11],[0,1,0,11],[1,1,4,1],[2,4,2,6],[4,4,4,11],[5,1,8,1],[5,5,5,6],[5,9,5,10],[6,4,6,11],[10,1,10,11],[11,1,11,11],[12,1,12,11],[13,1,13,11]]}
[0,"1. AWARD INFORMATION"]
[null,"PRIMARY AWARD LINE",null,"PI Name:",{"$f":"'SUM of SAL Lines'!E3:G3","v":0},null,null,null,"Primary Grant Worktag:","GR-",{"$f":"'SUM of SAL Lines'!K3","v":0}]
[null,null,null,"PI Signature:",null,null,null,null,null,"GoldSheet Number:",{"$f":"'SUM of SAL Lines'!K4","v":0}]
[null,null,null,"Sponsor:",{"$f":"'SUM of SAL Lines'!E5:K5","v":0}]
[null,null,null,"Title of Project:",{"$f":"'SUM of SAL Lines'!E6:K6","v":0}]
[null,"SECONDARY AWARD LINE",null,"Period of Performance:","  From: ",null,null,"To:"]
[null,null,null,"Title (if different):"]
[null,null,null,"PI Name:",null,null,null,null,null,"Secondary Grang Worktag:  GR-"]
[null,null,null,"Lead Org Dept:"]
[null,null,null,"Cost Center:  CC",null,"Business Unit:  BU",null,null,null,"RRC/Org Unit:"]
[null,"2.SECONDARY AWARD LINE PRINCIPAL INVESTIGATOR CERTIFICATIONS"]
[null,"* I agree to be bound by the terms and conditions of the outside grant or contract which supports this activity, and, in consideration of the information\n   and facilities made available to me by the University or the outside sponsor, to assign copyright and patent rights to the Iowa State University \n   Research Foundation, Inc. in accordance with the terms and conditions stated in the Faculty Handbook."]
[null,"* I certify that I have not been debarred, suspended, or declared ineligible to receive agency funds."]
[null,"  Conflict of Interest and Commitment (COIC): Real or perceived conflicts of interest may exist in a project when an investigator or a member\n  of his or her family has: a management role in, financial interest in, or a paid consulting agreement with the sponsor or paid consulting\n  agreements with other entities on topics related to the project. By signing this form, all investigators certify that they have read and\n  understand ISU's Conflict of Interest and Commitment Policy [http://www.provost.iastate.edu/help/coic] and made all disclosures required\n  by it. For further information, call 4-7793."]
[null,"                                                        Is there a potential for Conflict of Interest?"]
[]
[null,"                                                        If yes, are disclosure procedures being implemented?"]
[null,"* I certify to the best of my knowledge that the statements contained in this form are true."]
[null,null,null,"_________________________________________________"]
[null,null,null,"Signature of:",{"$f":"E8","v":0},null,null,null,"Date"]
[null,"3. SECONDARY AWARD LINE BUDGET TO BE ENTERED",null,null,null,null,null,"4. SECONDARY AWARD LINE COMPLIANCES"]
[null,"Salary/Wages",null,null,null,"$",null,"1. Will vertebrate animals be used in this project?"]
[null,"Payroll Benefits",null,null,null,"$"]
[null,"Equipment",null,null,null,"$",null,"      If yes, provide IACUC Log #:"]
[null,"Travel - Domestic",null,null,null,"$",null,"2. Are the following safety or health hazards involved?"]
[null,"Travel - Foreign",null,null,null,"$",null,"     a. Recombinant DNA, Human, or Animal Pathogens"]
[null,"Student Tuition",null,null,null,"$",null,"     b. Radiological Materials"]
[null,"Supplies/Materials",null,null,null,"$"]
[null,null,null,null,null,null,null,"If yes to either, provide IBC Log #:"]
[null,"Subcontracts ",null,null,null,null,null,"3. Will human subjects be used in this project?"]
[null,"Subcontracts - Burdenable",null,null,null,"$"]
[null,"Subcontracts - Nonburdenable",null,null,null,"$",null,"       If yes, provide IRB Log #:"]
[]
[null,"Other Direct Costs",null,null,null," ",null,"5. SECONDARY AWARD LINE AUTHORIZATIONS"]
[null,"Computer Usage",null,null,null,"$",null,"This form has been received and is judged to be consistent with the objectives and capabilities of the unit receiving the funding and represented by the signatures below.  The proposed effort is considered compatible with other University duties of the Investigator(s) and consistent with University policies."]
[null,"Printing/Copying",null,null,null,"$"]
[null,"Honoraria Services",null,null,null,"$"]
[null,"Postage",null,null,null,"$",null,"Authorization on behalf of:",null,{"$f":"E9","v":0}]
[null,"Other Direct Costs",null,null,null,"$",null,"Printed Name of Authorizer:"]
[null,"Participant Support Costs",null,null,null,"$",null,"Signature & Date:"]
[null,"TOTAL DIRECT COSTS",null,null,null,"$",{"$f":"SUM(G22:G40)","v":0},"Authorization on behalf of:",null,{"$f":"K10","v":0}]
[null,"Indirect Costs ",null,"Rate:",{"$f":"'SUM of SAL Lines'!E26","v":0},"$",null,"Printed Name of Authorizer:"]
[null,null,null,null,"TOTAL ALL COSTS","$",{"$f":"+G41+G42","v":0},"Signature & Date:"]

{"sheet":"Line 17","index":18,"n_rows":43,"n_cols":11,"rows_kept":43,"cut":false,"hidden":false,"merged":[[31,7,31,9],[33,1,33,4],[33,7,33,11],[42,7,42,11],[34,7,36,11],[37,7,37,8],[37,9,37,11],[40,1,40,4],[40,7,40,8],[40,9,40,11],[20,1,20,6],[20,7,20,11],[23,7,23,9],[28,7,28,9],[29,1,29,4],[14,1,14,11],[9,5,9,6],[17,1,17,11],[18,8,18,9],[19,8,19,9],[8,4,8,10],[19,4,19,6],[7,4,7,6],[16,1,16,11],[0,1,0,11],[1,1,4,1],[2,4,2,6],[4,4,4,11],[5,1,8,1],[5,5,5,6],[5,9,5,10],[6,4,6,11],[10,1,10,11],[11,1,11,11],[12,1,12,11],[13,1,13,11]]}
[0,"1. AWARD INFORMATION"]
[null,"PRIMARY AWARD LINE",null,"PI Name:",{"$f":"'SUM of SAL Lines'!E3:G3","v":0},null,null,null,"Primary Grant Worktag:","GR-",{"$f":"'SUM of SAL Lines'!K3","v":0}]
[null,null,null,"PI Signature:",null,null,null,null,null,"GoldSheet Number:",{"$f":"'SUM of SAL Lines'!K4","v":0}]
[null,null,null,"Sponsor:",{"$f":"'SUM of SAL Lines'!E5:K5","v":0}]
[null,null,null,"Title of Project:",{"$f":"'SUM of SAL Lines'!E6:K6","v":0}]
[null,"SECONDARY AWARD LINE",null,"Period of Performance:","  From: ",null,null,"To:"]
[null,null,null,"Title (if different):"]
[null,null,null,"PI Name:",null,null,null,null,null,"Secondary Grang Worktag:  GR-"]
[null,null,null,"Lead Org Dept:"]
[null,null,null,"Cost Center:  CC",null,"Business Unit:  BU",null,null,null,"RRC/Org Unit:"]
[null,"2.SECONDARY AWARD LINE PRINCIPAL INVESTIGATOR CERTIFICATIONS"]
[null,"* I agree to be bound by the terms and conditions of the outside grant or contract which supports this activity, and, in consideration of the information\n   and facilities made available to me by the University or the outside sponsor, to assign copyright and patent rights to the Iowa State University \n   Research Foundation, Inc. in accordance with the terms and conditions stated in the Faculty Handbook."]
[null,"* I certify that I have not been debarred, suspended, or declared ineligible to receive agency funds."]
[null,"  Conflict of Interest and Commitment (COIC): Real or perceived conflicts of interest may exist in a project when an investigator or a member\n  of his or her family has: a management role in, financial interest in, or a paid consulting agreement with the sponsor or paid consulting\n  agreements with other entities on topics related to the project. By signing this form, all investigators certify that they have read and\n  understand ISU's Conflict of Interest and Commitment Policy [http://www.provost.iastate.edu/help/coic] and made all disclosures required\n  by it. For further information, call 4-7793."]
[null,"                                                        Is there a potential for Conflict of Interest?"]
[]
[null,"                                                        If yes, are disclosure procedures being implemented?"]
[null,"* I certify to the best of my knowledge that the statements contained in this form are true."]
[null,null,null,"_________________________________________________"]
[null,null,null,"Signature of:",{"$f":"E8","v":0},null,null,null,"Date"]
[null,"3. SECONDARY AWARD LINE BUDGET TO BE ENTERED",null,null,null,null,null,"4. SECONDARY AWARD LINE COMPLIANCES"]
[null,"Salary/Wages",null,null,null,"$",null,"1. Will vertebrate animals be used in this project?"]
[null,"Payroll Benefits",null,null,null,"$"]
[null,"Equipment",null,null,null,"$",null,"      If yes, provide IACUC Log #:"]
[null,"Travel - Domestic",null,null,null,"$",null,"2. Are the following safety or health hazards involved?"]
[null,"Travel - Foreign",null,null,null,"$",null,"     a. Recombinant DNA, Human, or Animal Pathogens"]
[null,"Student Tuition",null,null,null,"$",null,"     b. Radiological Materials"]
[null,"Supplies/Materials",null,null,null,"$"]
[null,null,null,null,null,null,null,"If yes to either, provide IBC Log #:"]
[null,"Subcontracts ",null,null,null,null,null,"3. Will human subjects be used in this project?"]
[null,"Subcontracts - Burdenable",null,null,null,"$"]
[null,"Subcontracts - Nonburdenable",null,null,null,"$",null,"       If yes, provide IRB Log #:"]
[]
[null,"Other Direct Costs",null,null,null," ",null,"5. SECONDARY AWARD LINE AUTHORIZATIONS"]
[null,"Computer Usage",null,null,null,"$",null,"This form has been received and is judged to be consistent with the objectives and capabilities of the unit receiving the funding and represented by the signatures below.  The proposed effort is considered compatible with other University duties of the Investigator(s) and consistent with University policies."]
[null,"Printing/Copying",null,null,null,"$"]
[null,"Honoraria Services",null,null,null,"$"]
[null,"Postage",null,null,null,"$",null,"Authorization on behalf of:",null,{"$f":"E9","v":0}]
[null,"Other Direct Costs",null,null,null,"$",null,"Printed Name of Authorizer:"]
[null,"Participant Support Costs",null,null,null,"$",null,"Signature & Date:"]
[null,"TOTAL DIRECT COSTS",null,null,null,"$",{"$f":"SUM(G22:G40)","v":0},"Authorization on behalf of:",null,{"$f":"K10","v":0}]
[null,"Indirect Costs ",null,"Rate:",{"$f":"'SUM of SAL Lines'!E26","v":0},"$",null,"Printed Name of Authorizer:"]
[null,null,null,null,"TOTAL ALL COSTS","$",{"$f":"+G41+G42","v":0},"Signature & Date:"]

{"sheet":"Line 18","index":19,"n_rows":43,"n_cols":11,"rows_kept":43,"cut":false,"hidden":false,"merged":[[31,7,31,9],[33,1,33,4],[33,7,33,11],[42,7,42,11],[34,7,36,11],[37,7,37,8],[37,9,37,11],[40,1,40,4],[40,7,40,8],[40,9,40,11],[20,1,20,6],[20,7,20,11],[23,7,23,9],[28,7,28,9],[29,1,29,4],[14,1,14,11],[9,5,9,6],[17,1,17,11],[18,8,18,9],[19,8,19,9],[8,4,8,10],[19,4,19,6],[7,4,7,6],[16,1,16,11],[0,1,0,11],[1,1,4,1],[2,4,2,6],[4,4,4,11],[5,1,8,1],[5,5,5,6],[5,9,5,10],[6,4,6,11],[10,1,10,11],[11,1,11,11],[12,1,12,11],[13,1,13,11]]}
[0,"1. AWARD INFORMATION"]
[null,"PRIMARY AWARD LINE",null,"PI Name:",{"$f":"'SUM of SAL Lines'!E3:G3","v":0},null,null,null,"Primary Grant Worktag:","GR-",{"$f":"'SUM of SAL Lines'!K3","v":0}]
[null,null,null,"PI Signature:",null,null,null,null,null,"GoldSheet Number:",{"$f":"'SUM of SAL Lines'!K4","v":0}]
[null,null,null,"Sponsor:",{"$f":"'SUM of SAL Lines'!E5:K5","v":0}]
[null,null,null,"Title of Project:",{"$f":"'SUM of SAL Lines'!E6:K6","v":0}]
[null,"SECONDARY AWARD LINE",null,"Period of Performance:","  From: ",null,null,"To:"]
[null,null,null,"Title (if different):"]
[null,null,null,"PI Name:",null,null,null,null,null,"Secondary Grang Worktag:  GR-"]
[null,null,null,"Lead Org Dept:"]
[null,null,null,"Cost Center:  CC",null,"Business Unit:  BU",null,null,null,"RRC/Org Unit:"]
[null,"2.SECONDARY AWARD LINE PRINCIPAL INVESTIGATOR CERTIFICATIONS"]
[null,"* I agree to be bound by the terms and conditions of the outside grant or contract which supports this activity, and, in consideration of the information\n   and facilities made available to me by the University or the outside sponsor, to assign copyright and patent rights to the Iowa State University \n   Research Foundation, Inc. in accordance with the terms and conditions stated in the Faculty Handbook."]
[null,"* I certify that I have not been debarred, suspended, or declared ineligible to receive agency funds."]
[null,"  Conflict of Interest and Commitment (COIC): Real or perceived conflicts of interest may exist in a project when an investigator or a member\n  of his or her family has: a management role in, financial interest in, or a paid consulting agreement with the sponsor or paid consulting\n  agreements with other entities on topics related to the project. By signing this form, all investigators certify that they have read and\n  understand ISU's Conflict of Interest and Commitment Policy [http://www.provost.iastate.edu/help/coic] and made all disclosures required\n  by it. For further information, call 4-7793."]
[null,"                                                        Is there a potential for Conflict of Interest?"]
[]
[null,"                                                        If yes, are disclosure procedures being implemented?"]
[null,"* I certify to the best of my knowledge that the statements contained in this form are true."]
[null,null,null,"_________________________________________________"]
[null,null,null,"Signature of:",{"$f":"E8","v":0},null,null,null,"Date"]
[null,"3. SECONDARY AWARD LINE BUDGET TO BE ENTERED",null,null,null,null,null,"4. SECONDARY AWARD LINE COMPLIANCES"]
[null,"Salary/Wages",null,null,null,"$",null,"1. Will vertebrate animals be used in this project?"]
[null,"Payroll Benefits",null,null,null,"$"]
[null,"Equipment",null,null,null,"$",null,"      If yes, provide IACUC Log #:"]
[null,"Travel - Domestic",null,null,null,"$",null,"2. Are the following safety or health hazards involved?"]
[null,"Travel - Foreign",null,null,null,"$",null,"     a. Recombinant DNA, Human, or Animal Pathogens"]
[null,"Student Tuition",null,null,null,"$",null,"     b. Radiological Materials"]
[null,"Supplies/Materials",null,null,null,"$"]
[null,null,null,null,null,null,null,"If yes to either, provide IBC Log #:"]
[null,"Subcontracts ",null,null,null,null,null,"3. Will human subjects be used in this project?"]
[null,"Subcontracts - Burdenable",null,null,null,"$"]
[null,"Subcontracts - Nonburdenable",null,null,null,"$",null,"       If yes, provide IRB Log #:"]
[]
[null,"Other Direct Costs",null,null,null," ",null,"5. SECONDARY AWARD LINE AUTHORIZATIONS"]
[null,"Computer Usage",null,null,null,"$",null,"This form has been received and is judged to be consistent with the objectives and capabilities of the unit receiving the funding and represented by the signatures below.  The proposed effort is considered compatible with other University duties of the Investigator(s) and consistent with University policies."]
[null,"Printing/Copying",null,null,null,"$"]
[null,"Honoraria Services",null,null,null,"$"]
[null,"Postage",null,null,null,"$",null,"Authorization on behalf of:",null,{"$f":"E9","v":0}]
[null,"Other Direct Costs",null,null,null,"$",null,"Printed Name of Authorizer:"]
[null,"Participant Support Costs",null,null,null,"$",null,"Signature & Date:"]
[null,"TOTAL DIRECT COSTS",null,null,null,"$",{"$f":"SUM(G22:G40)","v":0},"Authorization on behalf of:",null,{"$f":"K10","v":0}]
[null,"Indirect Costs ",null,"Rate:",{"$f":"'SUM of SAL Lines'!E26","v":0},"$",null,"Printed Name of Authorizer:"]
[null,null,null,null,"TOTAL ALL COSTS","$",{"$f":"+G41+G42","v":0},"Signature & Date:"]

{"sheet":"Line 19","index":20,"n_rows":43,"n_cols":11,"rows_kept":43,"cut":false,"hidden":false,"merged":[[31,7,31,9],[33,1,33,4],[33,7,33,11],[42,7,42,11],[34,7,36,11],[37,7,37,8],[37,9,37,11],[40,1,40,4],[40,7,40,8],[40,9,40,11],[20,1,20,6],[20,7,20,11],[23,7,23,9],[28,7,28,9],[29,1,29,4],[14,1,14,11],[9,5,9,6],[17,1,17,11],[18,8,18,9],[19,8,19,9],[8,4,8,10],[19,4,19,6],[7,4,7,6],[16,1,16,11],[0,1,0,11],[1,1,4,1],[2,4,2,6],[4,4,4,11],[5,1,8,1],[5,5,5,6],[5,9,5,10],[6,4,6,11],[10,1,10,11],[11,1,11,11],[12,1,12,11],[13,1,13,11]]}
[0,"1. AWARD INFORMATION"]
[null,"PRIMARY AWARD LINE",null,"PI Name:",{"$f":"'SUM of SAL Lines'!E3:G3","v":0},null,null,null,"Primary Grant Worktag:","GR-",{"$f":"'SUM of SAL Lines'!K3","v":0}]
[null,null,null,"PI Signature:",null,null,null,null,null,"GoldSheet Number:",{"$f":"'SUM of SAL Lines'!K4","v":0}]
[null,null,null,"Sponsor:",{"$f":"'SUM of SAL Lines'!E5:K5","v":0}]
[null,null,null,"Title of Project:",{"$f":"'SUM of SAL Lines'!E6:K6","v":0}]
[null,"SECONDARY AWARD LINE",null,"Period of Performance:","  From: ",null,null,"To:"]
[null,null,null,"Title (if different):"]
[null,null,null,"PI Name:",null,null,null,null,null,"Secondary Grang Worktag:  GR-"]
[null,null,null,"Lead Org Dept:"]
[null,null,null,"Cost Center:  CC",null,"Business Unit:  BU",null,null,null,"RRC/Org Unit:"]
[null,"2.SECONDARY AWARD LINE PRINCIPAL INVESTIGATOR CERTIFICATIONS"]
[null,"* I agree to be bound by the terms and conditions of the outside grant or contract which supports this activity, and, in consideration of the information\n   and facilities made available to me by the University or the outside sponsor, to assign copyright and patent rights to the Iowa State University \n   Research Foundation, Inc. in accordance with the terms and conditions stated in the Faculty Handbook."]
[null,"* I certify that I have not been debarred, suspended, or declared ineligible to receive agency funds."]
[null,"  Conflict of Interest and Commitment (COIC): Real or perceived conflicts of interest may exist in a project when an investigator or a member\n  of his or her family has: a management role in, financial interest in, or a paid consulting agreement with the sponsor or paid consulting\n  agreements with other entities on topics related to the project. By signing this form, all investigators certify that they have read and\n  understand ISU's Conflict of Interest and Commitment Policy [http://www.provost.iastate.edu/help/coic] and made all disclosures required\n  by it. For further information, call 4-7793."]
[null,"                                                        Is there a potential for Conflict of Interest?"]
[]
[null,"                                                        If yes, are disclosure procedures being implemented?"]
[null,"* I certify to the best of my knowledge that the statements contained in this form are true."]
[null,null,null,"_________________________________________________"]
[null,null,null,"Signature of:",{"$f":"E8","v":0},null,null,null,"Date"]
[null,"3. SECONDARY AWARD LINE BUDGET TO BE ENTERED",null,null,null,null,null,"4. SECONDARY AWARD LINE COMPLIANCES"]
[null,"Salary/Wages",null,null,null,"$",null,"1. Will vertebrate animals be used in this project?"]
[null,"Payroll Benefits",null,null,null,"$"]
[null,"Equipment",null,null,null,"$",null,"      If yes, provide IACUC Log #:"]
[null,"Travel - Domestic",null,null,null,"$",null,"2. Are the following safety or health hazards involved?"]
[null,"Travel - Foreign",null,null,null,"$",null,"     a. Recombinant DNA, Human, or Animal Pathogens"]
[null,"Student Tuition",null,null,null,"$",null,"     b. Radiological Materials"]
[null,"Supplies/Materials",null,null,null,"$"]
[null,null,null,null,null,null,null,"If yes to either, provide IBC Log #:"]
[null,"Subcontracts ",null,null,null,null,null,"3. Will human subjects be used in this project?"]
[null,"Subcontracts - Burdenable",null,null,null,"$"]
[null,"Subcontracts - Nonburdenable",null,null,null,"$",null,"       If yes, provide IRB Log #:"]
[]
[null,"Other Direct Costs",null,null,null," ",null,"5. SECONDARY AWARD LINE AUTHORIZATIONS"]
[null,"Computer Usage",null,null,null,"$",null,"This form has been received and is judged to be consistent with the objectives and capabilities of the unit receiving the funding and represented by the signatures below.  The proposed effort is considered compatible with other University duties of the Investigator(s) and consistent with University policies."]
[null,"Printing/Copying",null,null,null,"$"]
[null,"Honoraria Services",null,null,null,"$"]
[null,"Postage",null,null,null,"$",null,"Authorization on behalf of:",null,{"$f":"E9","v":0}]
[null,"Other Direct Costs",null,null,null,"$",null,"Printed Name of Authorizer:"]
[null,"Participant Support Costs",null,null,null,"$",null,"Signature & Date:"]
[null,"TOTAL DIRECT COSTS",null,null,null,"$",{"$f":"SUM(G22:G40)","v":0},"Authorization on behalf of:",null,{"$f":"K10","v":0}]
[null,"Indirect Costs ",null,"Rate:",{"$f":"'SUM of SAL Lines'!E26","v":0},"$",null,"Printed Name of Authorizer:"]
[null,null,null,null,"TOTAL ALL COSTS","$",{"$f":"+G41+G42","v":0},"Signature & Date:"]

{"sheet":"Line 20","index":21,"n_rows":43,"n_cols":11,"rows_kept":43,"cut":false,"hidden":false,"merged":[[31,7,31,9],[33,1,33,4],[33,7,33,11],[42,7,42,11],[34,7,36,11],[37,7,37,8],[37,9,37,11],[40,1,40,4],[40,7,40,8],[40,9,40,11],[20,1,20,6],[20,7,20,11],[23,7,23,9],[28,7,28,9],[29,1,29,4],[14,1,14,11],[9,5,9,6],[17,1,17,11],[18,8,18,9],[19,8,19,9],[8,4,8,10],[19,4,19,6],[7,4,7,6],[16,1,16,11],[0,1,0,11],[1,1,4,1],[2,4,2,6],[4,4,4,11],[5,1,8,1],[5,5,5,6],[5,9,5,10],[6,4,6,11],[10,1,10,11],[11,1,11,11],[12,1,12,11],[13,1,13,11]]}
[0,"1. AWARD INFORMATION"]
[0,"PRIMARY AWARD LINE",null,"PI Name:",{"$f":"'SUM of SAL Lines'!E3:G3","v":0},null,null,null,"Primary Grant Worktag:","GR-",{"$f":"'SUM of SAL Lines'!K3","v":0}]
[0,null,null,"PI Signature:",null,null,null,null,null,"GoldSheet Number:",{"$f":"'SUM of SAL Lines'!K4","v":0}]
[0,null,null,"Sponsor:",{"$f":"'SUM of SAL Lines'!E5:K5","v":0}]
[0,null,null,"Title of Project:",{"$f":"'SUM of SAL Lines'!E6:K6","v":0}]
[0,"SECONDARY AWARD LINE",null,"Period of Performance:","  From: ",null,null,"To:"]
[null,null,null,"Title (if different):"]
[null,null,null,"PI Name:",null,null,null,null,null,"Secondary Grang Worktag:  GR-"]
[null,null,null,"Lead Org Dept:"]
[null,null,null,"Cost Center:  CC",null,"Business Unit:  BU",null,null,null,"RRC/Org Unit:"]
[null,"2.SECONDARY AWARD LINE PRINCIPAL INVESTIGATOR CERTIFICATIONS"]
[null,"* I agree to be bound by the terms and conditions of the outside grant or contract which supports this activity, and, in consideration of the information\n   and facilities made available to me by the University or the outside sponsor, to assign copyright and patent rights to the Iowa State University \n   Research Foundation, Inc. in accordance with the terms and conditions stated in the Faculty Handbook."]
[null,"* I certify that I have not been debarred, suspended, or declared ineligible to receive agency funds."]
[null,"  Conflict of Interest and Commitment (COIC): Real or perceived conflicts of interest may exist in a project when an investigator or a member\n  of his or her family has: a management role in, financial interest in, or a paid consulting agreement with the sponsor or paid consulting\n  agreements with other entities on topics related to the project. By signing this form, all investigators certify that they have read and\n  understand ISU's Conflict of Interest and Commitment Policy [http://www.provost.iastate.edu/help/coic] and made all disclosures required\n  by it. For further information, call 4-7793."]
[null,"                                                        Is there a potential for Conflict of Interest?"]
[]
[null,"                                                        If yes, are disclosure procedures being implemented?"]
[null,"* I certify to the best of my knowledge that the statements contained in this form are true."]
[null,null,null,"_________________________________________________"]
[null,null,null,"Signature of:",{"$f":"E8","v":0},null,null,null,"Date"]
[null,"3. SECONDARY AWARD LINE BUDGET TO BE ENTERED",null,null,null,null,null,"4. SECONDARY AWARD LINE COMPLIANCES"]
[null,"Salary/Wages",null,null,null,"$",null,"1. Will vertebrate animals be used in this project?"]
[null,"Payroll Benefits",null,null,null,"$"]
[null,"Equipment",null,null,null,"$",null,"      If yes, provide IACUC Log #:"]
[null,"Travel - Domestic",null,null,null,"$",null,"2. Are the following safety or health hazards involved?"]
[null,"Travel - Foreign",null,null,null,"$",null,"     a. Recombinant DNA, Human, or Animal Pathogens"]
[null,"Student Tuition",null,null,null,"$",null,"     b. Radiological Materials"]
[null,"Supplies/Materials",null,null,null,"$"]
[null,null,null,null,null,null,null,"If yes to either, provide IBC Log #:"]
[null,"Subcontracts ",null,null,null,null,null,"3. Will human subjects be used in this project?"]
[null,"Subcontracts - Burdenable",null,null,null,"$"]
[null,"Subcontracts - Nonburdenable",null,null,null,"$",null,"       If yes, provide IRB Log #:"]
[]
[null,"Other Direct Costs",null,null,null," ",null,"5. SECONDARY AWARD LINE AUTHORIZATIONS"]
[null,"Computer Usage",null,null,null,"$",null,"This form has been received and is judged to be consistent with the objectives and capabilities of the unit receiving the funding and represented by the signatures below.  The proposed effort is considered compatible with other University duties of the Investigator(s) and consistent with University policies."]
[null,"Printing/Copying",null,null,null,"$"]
[null,"Honoraria Services",null,null,null,"$"]
[null,"Postage",null,null,null,"$",null,"Authorization on behalf of:",null,{"$f":"E9","v":0}]
[null,"Other Direct Costs",null,null,null,"$",null,"Printed Name of Authorizer:"]
[null,"Participant Support Costs",null,null,null,"$",null,"Signature & Date:"]
[null,"TOTAL DIRECT COSTS",null,null,null,"$",{"$f":"SUM(G22:G40)","v":0},"Authorization on behalf of:",null,{"$f":"K10","v":0}]
[null,"Indirect Costs ",null,"Rate:",{"$f":"'SUM of SAL Lines'!E26","v":0},"$",null,"Printed Name of Authorizer:"]
[null,null,null,null,"TOTAL ALL COSTS","$",{"$f":"+G41+G42","v":0},"Signature & Date:"]

{"sheet":"RRCs and Lead Units","index":22,"n_rows":288,"n_cols":2,"rows_kept":288,"cut":false,"hidden":false,"merged":[]}
[]
["AES","4-H FOUNDATION"]
["BUS","ACADEMIC EXCELLENCE FUND"]
["DSN","ACCOUNTING"]
["ENGR","ACCOUNTS RECEIVABLE"]
["EXT","ADMIN SUPPORT PROGRAMS"]
["HS","ADMISSIONS"]
["LAS","AEROSPACE ENGINEERING"]
["PRES","AES ADMIN CONTROL"]
["PROV","AG & BIOSYSTEMS ENGINEERING"]
["VET","AG 450 FARM"]
["VPBF","AG COMMUNICATIONS"]
["VPR","AG EDUCATION & STUDIES"]
["VPSA","AGRICULTURE CAREER SERVICES"]
[null,"AGRONOMY"]
[null,"AIR FORCE AEROSPACE STUDIES"]
[null,"ALUMNI SERVICE"]
[null,"AMES LABORATORY"]
[null,"ANIMAL SCIENCE"]
[null,"ANTHROPOLOGY"]
[null,"APPAREL, EVENTS & HOSP MGMT"]
[null,"ARCHITECTURE"]
[null,"ATHLETIC DEPARTMENT"]
[null,"BIOCHEMISTRY & BIOPHYSICS"]
[null,"BIOECONOMY INSTITUTE"]
[null,"BIOMEDICAL SCIENCES"]
[null,"BIOSAFETY INST FOR GEN MOD AG PROD"]
[null,"BIOTECHNOLOGY"]
[null,"BOOKSTORE"]
[null,"BRENTON CENTER"]
[null,"BUSINESS ADMINISTRATION"]
[null,"BUSINESS CAREER SERVICES"]
[null,"BUSINESS GRADUATE PROGRAM"]
[null,"BUSINESS SERVICES"]
[null,"BUSINESS UNDERGRAD PROGRAMS"]
[null,"C C CATT CENTER"]
[null,"CAMPUS ORGANIZATIONS"]
[null,"CENTER FOR AG & RURAL DEVELOPMENT"]
[null,"CENTER FOR AGRI LAW & TAXATION"]
[null,"CENTER FOR CATALYSIS"]
[null,"CENTER FOR CROPS UTILIZATION"]
[null,"CENTER FOR E-DESIGN"]
[null,"CENTER FOR INDUSTRIAL RESEARCH & SERVICE"]
[null,"CENTER FOR NON-DESTRUCTIVE EVALUATION"]
[null,"CENTRAL STORES"]
[null,"CHEMICAL & BIOLOGICAL ENGR"]
[null,"CHEMISTRY"]
[null,"CHEMISTRY SERVICES"]
[null,"CHILD CARE SERVICE"]
[null,"CIVIL, CONSTR & ENVIRONMENTAL ENGR"]
[null,"CLIMATE SCIENCE INITIATIVE"]
[null,"COLLEGE BOUND"]
[null,"COLLEGE OF AGRICULTURE ADMINISTRATION"]
[null,"COLLEGE OF BUSINESS ADMINISTRATION"]
[null,"COLLEGE OF DESIGN ADMINISTRATION"]
[null,"COLLEGE OF ENGINEERING ADMINISTRATION"]
[null,"COLLEGE OF HUMAN SCIENCES ADMIN"]
[null,"COLLEGE OF LAS ADMINISTRATION"]
[null,"COLLEGE OF VETERINARY MEDICINE ADMIN"]
[null,"COMMUNITIES-EXTENSION"]
[null,"COMMUNITY & REGIONAL PLANNING"]
[null,"COMPUTER SCIENCE"]
[null,"CONFERENCE PLANNING & MGMT"]
[null,"CONTINUING ED REGISTRATION SERVICES"]
[null,"CONTROLLER'S DEPT"]
[null,"COOPERATIVE EXTENSION FIELD PROGRAM"]
[null,"COUNSELING SERVICE"]
[null,"CROSS DISCIPLINARY STUDIES"]
[null,"CTR ADV HOST DEFENSES IMMUN TRANSL COM"]
[null,"CTR FOR AMER INTERCULTURAL STUDIES"]
[null,"CTR FOR BIOINFORMATICS & BIOL STATISTICS"]
[null,"CTR FOR BIORENEWABLE CHEMICALS"]
[null,"CTR FOR BUILDING ENERGY RESEARCH"]
[null,"CTR FOR DESIGN FOODS TO IMPR NUTRIT"]
[null,"CTR FOR EXCEL IN SCI, MATH, ENGR ED"]
[null,"CTR FOR EXCELLENCE IN ARTS & HUMANITIES"]
[null,"CTR FOR EXCELLENCE IN LEARNING/TEACHING"]
[null,"CTR FOR FOOD SECURITY & PUBLIC HEALTH"]
[null,"CTR FOR PLANT BREEDING"]
[null,"CTR FOR PLANT GENOMICS"]
[null,"CTR FOR SURVEY STATISTICS & METHODOLOGY"]
[null,"CTR FOR SUSTAINABLE RUR LIVELIHOODS"]
[null,"CTR FOR TECHNOLOGY IN LEARNING/TEACHING"]
[null,"DEAN OF STUDENTS OFFICE"]
[null,"DESIGN EXTENSION"]
[null,"DESIGN STUDIES"]
[null,"DISTANCE EDUCATION-ENGR"]
[null,"ECOLOGY,EVOLUTION & ORG BIOLOGY"]
[null,"ECON DEVELOP & INDUSTRY RELATIONS"]
[null,"ECONOMICS"]
[null,"EDUCATIONAL TALENT SEARCH"]
[null,"EGG INDUSTRY CENTER"]
[null,"ELECTRICAL ENGINEERING & COMPUTER ENGR"]
[null,"ENGINEERING CAREER SERVICES"]
[null,"ENGINEERING COMPUTING SUPPORT SERVICES"]
[null,"ENGINEERING OUTREACH PROGRAMS"]
[null,"ENGINEERING RESEARCH INSTITUTE"]
[null,"ENGINEERING STUDENT SERVICES"]
[null,"ENGLISH"]
[null,"ENGR COMMUNICATIONS & MARKETING"]
[null,"ENROLLMENT SERVICES"]
[null,"ENTOMOLOGY"]
[null,"ENVIRONMENT HEALTH & SAFETY"]
[null,"ENVIRONMENTAL PROGRAMS"]
[null,"EQUAL OPPORTUNITY & DIVERSITY"]
[null,"EXT COMM & EXTERNAL RELATIONS"]
[null,"EXTENSION ADMINISTRATION"]
[null,"EXTENSION DISTRIBUTION"]
[null,"EXTENSION INFORMATION TECHNOLOGY (EXTIT)"]
[null,"EXTENSION ORGANIZATIONAL ADVANCEMENT"]
[null,"EXTENSION TO AG"]
[null,"EXTENSION TO YOUTH & 4H"]
[null,"EXT-ORGANIZATIONAL DEVEL"]
[null,"EXT-PROFESSIONAL DEVEL"]
[null,"FACILITIES PLANNING & MANAGEMENT"]
[null,"FACULTY SENATE"]
[null,"FIN AID SCHOLARSHIPS"]
[null,"FINANCE"]
[null,"FINANCE EXTENSION"]
[null,"FLIGHT SERVICE"]
[null,"FOOD SCIENCE & HUMAN NUTRITION"]
[null,"FOOD STORES"]
[null,"GENETICS DEVELOPMENT & CELL BIOLOGY"]
[null,"GEOLOGICAL & ATMOSPHERIC SCIENCES"]
[null,"GLOBAL AG PROGRAMS"]
[null,"GLOBAL EXTENSION"]
[null,"GLOBAL RESOURCE SYSTEMS"]
[null,"GOVT RELATIONS"]
[null,"GRADUATE COLLEGE"]
[null,"GRANTS HUB"]
[null,"GRAPHIC DESIGN"]
[null,"HISTORY"]
[null,"HONORS PROGRAM"]
[null,"HORTICULTURE"]
[null,"HUMAN DEVELOPMENT & FAMILY STUDIES"]
[null,"HUMAN RESOURCES"]
[null,"HUMAN RESOURCES EXTENSION"]
[null,"HUMAN SCIENCE DISTANCE EDUCATION"]
[null,"HUMAN SCIENCES CAREER SERVICES"]
[null,"HUMAN SCIENCES EXP STATION"]
[null,"HUMAN SCIENCES EXTENSION AND OUTREACH"]
[null,"HUMAN SCIENCES STUDENT SERVICES"]
[null,"IA CROP IMP/COMM AG DEVELOPMENT"]
[null,"ICAN (IA CTR FOR ADV NEUROTOX)"]
[null,"INDUSTRIAL & MANUFACTURING SYSTEMS ENGR"]
[null,"INDUSTRIAL DESIGN"]
[null,"INFO INFRASTRUCTURE INITIATIVE"]
[null,"INFORMATION ASSURANCE CENTER"]
[null,"INST EXCELLENCE FUND"]
[null,"INST FOR SOCIAL & BEHAVIORAL RES"]
[null,"INST FOR TRANSPORTATION (INTRANS)"]
[null,"INSTITUTE FOR COMBINATORIAL DISCOVERY"]
[null,"INSTITUTE FOR DESIGN RESEARCH & OUTREACH"]
[null,"INSTITUTIONAL EXCELLENCE FUND-ASC"]
[null,"INSTITUTIONAL RESEARCH"]
[null,"INTEGRATED STUDIO"]
[null,"INTENSIVE ENGLISH & ORIENTATION PROGRAM"]
[null,"INTERIOR DESIGN"]
[null,"INTERNAL AUDIT"]
[null,"INTERNATIONAL EDUCATION PROGRAMS"]
[null,"INTERNATIONAL EDUCATION SERVICES"]
[null,"IOWA BEEF CENTER"]
[null,"IOWA ENERGY CENTER"]
[null,"IOWA PORK INDUSTRY CENTER"]
[null,"IOWA STATE CENTER"]
[null,"IOWA WATER CENTER"]
[null,"ISU DINING"]
[null,"ISU FOUNDATION"]
[null,"ISU GENERAL INSTRUCTION"]
[null,"ISU PAPPAJOHN CTR FOR ENTREP"]
[null,"ISU RESEARCH FARMS"]
[null,"ISU RESEARCH FOUNDATION"]
[null,"ISU RESEARCH PARK"]
[null,"IT SVCS-ACAD TECH"]
[null,"IT SVCS-ADMIN SVCS"]
[null,"IT SVCS-CIO"]
[null,"IT SVCS-CUSTOMER SVCS"]
[null,"IT SVCS-GISS & RF"]
[null,"IT SVCS-NETWORKS/COMM"]
[null,"IT SVCS-SECURITY/POLICIES"]
[null,"IT SVCS-SYSTEMS/OPER"]
[null,"IT SVCS-UNIV INFO SYSTEMS"]
[null,"JOURNALISM & MASS COMMUNICATION"]
[null,"KINESIOLOGY"]
[null,"LAB ANIMAL RESOURCES"]
[null,"LAKESIDE LAB"]
[null,"LANDSCAPE ARCHITECTURE"]
[null,"LAS CAREER SERVICES"]
[null,"LAS STUDENT SERVICES"]
[null,"LECTURES PROGRAM"]
[null,"LEOPOLD CENTER"]
[null,"LIBRARY"]
[null,"LOGISTICS OPERATIONS & MIS (LOMIS)"]
[null,"MANAGEMENT"]
[null,"MARKETING"]
[null,"MATERIALS SCIENCE & ENGINEERING"]
[null,"MATHEMATICS"]
[null,"MECHANICAL ENGINEERING"]
[null,"MEMORIAL UNION"]
[null,"MICROBIOLOGY"]
[null,"MICROELECTRONICS RESEARCH CENTER"]
[null,"MIDWEST FORENSICS RESOURCE CENTER"]
[null,"MIDWEST PLANNING SERVICE"]
[null,"MILITARY SCIENCE & TACTICS"]
[null,"MOLECULAR BIOLOGY BUILDING"]
[null,"MULTICULTURAL STUDENT AFFAIRS"]
[null,"MUSIC"]
[null,"NATIONAL STUDENT EXCHANGE"]
[null,"NATURAL RESOURCE ECOLOGY & MGMT"]
[null,"NAVAL SCIENCES"]
[null,"NEW STUDENT PROGRAMS"]
[null,"NUTRITION & WELLNESS RES CTR"]
[null,"OFFICE FOR RESPONSIBLE RESEARCH"]
[null,"OFFICE OF INTELLCT PROP & TECH TRANS"]
[null,"OFFICE OF PROVOST-RRC"]
[null,"OFFICE OF SPONSORED PROGRAMS ADMIN"]
[null,"OMBUDS OFFICE"]
[null,"PARKING ENTERPRISE"]
[null,"PARTNERSHIPS IN PREVENTION SCIENCE INST"]
[null,"PHILOSOPHY"]
[null,"PHYSICS & ASTRONOMY"]
[null,"PLANT PATHOLOGY"]
[null,"PLANT SCIENCES INSTITUTE"]
[null,"POLITICAL SCIENCE"]
[null,"PRESIDENT"]
[null,"PRINTING"]
[null,"PSYCHOLOGY"]
[null,"PUBLIC SAFETY"]
[null,"PURCHASING"]
[null,"RECORDS & REGISTRATION"]
[null,"RECREATION SERVICES"]
[null,"REIMAN GARDENS"]
[null,"RES INSTITUTE FOR STUDIES IN EDUC"]
[null,"RESIDENCE HALLS"]
[null,"RESIDENCE LIFE"]
[null,"RISK MANAGEMENT"]
[null,"SCHOOL OF EDUCATION"]
[null,"SEED SCIENCE CENTER"]
[null,"SMALL BUSINESS DEVELOPMENT CENTER"]
[null,"SOCIOLOGY"]
[null,"SOIL TILTH"]
[null,"SPONSORED PROGRAMS ACCOUNTING"]
[null,"SR VP AND PROVOST"]
[null,"STATISTICAL LABORATORY"]
[null,"STATISTICS"]
[null,"STUDENT ACTIVITIES CENTER"]
[null,"STUDENT APARTMENT ADMINISTRATION"]
[null,"STUDENT FINANCIAL AID"]
[null,"STUDENT HEALTH CENTER"]
[null,"STUDY ABROAD CENTER"]
[null,"SUBSTANCE ABUSE & VIOLENCE PREVENTION"]
[null,"SURVEY & BEHAVIORAL RESEARCH SVCS"]
[null,"SWINE MEDICINE EDUCATION CENTER"]
[null,"TEACHER EDUCATION"]
[null,"TRADEMARK OFFICE"]
[null,"TRANSPORTATION SERVICES"]
[null,"TREASURER"]
[null,"UNIVERSITY COUNSEL"]
[null,"UNIVERSITY EXTENSION"]
[null,"UNIVERSITY MARKETING"]
[null,"UNIVERSITY MUSEUMS"]
[null,"UNIVERSITY RELATIONS"]
[null,"UPWARD BOUND"]
[null,"UTILITY ENTERPRISE"]
[null,"VALUE ADD AG-EXTENSION"]
[null,"VEENKER"]
[null,"VET CLINICAL SCIENCES"]
[null,"VET DIAGNOSTIC & PROD ANIMAL MED"]
[null,"VET DIAGNOSTIC LAB"]
[null,"VET MED RESEARCH INSTITUTE"]
[null,"VET MEDICAL CENTER"]
[null,"VET MICROBIOLOGY & PREV MED"]
[null,"VET PATHOLOGY"]
[null,"VETERINARY MEDICINE"]
[null,"VETERINARY MICROBIOLOGY & PREV MED"]
[null,"VICE PRESIDENT FOR BUSINESS & FINANCE"]
[null,"VICE PRESIDENT FOR STUDENT AFFAIRS"]
[null,"VIRTUAL REALITY APPLICATIONS CENTER"]
[null,"VP BUSINESS & FINANCE"]
[null,"VP FOR RESEARCH"]
[null,"VP STUDENT AFFAIRS"]
[null,"WOI RADIO"]
[null,"WOMEN IN SCIENCE & ENGINEERING"]
[null,"WOMEN'S STUDIES"]
[null,"WOMEN'S CENTER"]
[null,"WORLD LANGUAGES & CULTURES"]
[null,"YMCA"]
[null,"YWCA"]